Workbook

Sheet STP Spend per head calc
A1: STP | B1: STP population | C1: Planned MH spend 2018/19 [1] | D1: Planned MH spend as % of base allocations [2] | E1: STP spend per head on MH
A2: South Yorkshire and Bassetlaw | B2: 1603622.636 | C2: 353805859.8 | D2: 0.166 | E2: =Table3[[#This Row],[Planned MH spend 2018/19 '[1']]]/Table3[[#This Row],[STP population]] -> 220.6291256
A3: Cornwall and the Isles of Scilly | B3: 599303.2074 | C3: 124637000 | D3: 0.161 | E3: =Table3[[#This Row],[Planned MH spend 2018/19 '[1']]]/Table3[[#This Row],[STP population]] -> 207.9698531
A4: North Central London | B4: 1523650.943 | C4: 312513266 | D4: 0.157 | E4: =Table3[[#This Row],[Planned MH spend 2018/19 '[1']]]/Table3[[#This Row],[STP population]] -> 205.1081761
A5: Coventry and Warwickshire | B5: 961446.984 | C5: 196686272 | D5: 0.166 | E5: =Table3[[#This Row],[Planned MH spend 2018/19 '[1']]]/Table3[[#This Row],[STP population]] -> 204.5731853
A6: Birmingham and Solihull | B6: 1295062.085 | C6: 263884000 | D6: 0.162 | E6: =Table3[[#This Row],[Planned MH spend 2018/19 '[1']]]/Table3[[#This Row],[STP population]] -> 203.7616598
A7: Cumbria and North East | B7: 3793912.527 | C7: 770281298.6 | D7: 0.164 | E7: =Table3[[#This Row],[Planned MH spend 2018/19 '[1']]]/Table3[[#This Row],[STP population]] -> 203.0308535
A8: Norfolk and Waveney | B8: 1062780.448 | C8: 210162770.4 | D8: 0.157 | E8: =Table3[[#This Row],[Planned MH spend 2018/19 '[1']]]/Table3[[#This Row],[STP population]] -> 197.7480587
A9: Nottinghamshire | B9: 1064279.904 | C9: 208830000 | D9: 0.155 | E9: =Table3[[#This Row],[Planned MH spend 2018/19 '[1']]]/Table3[[#This Row],[STP population]] -> 196.2171786
A10: Lancashire and South Cumbria | B10: 1681465.372 | C10: 329804108.7 | D10: 0.134 | E10: =Table3[[#This Row],[Planned MH spend 2018/19 '[1']]]/Table3[[#This Row],[STP population]] -> 196.1408866
A11: Dorset | B11: 839480.3677 | C11: 163872707.3 | D11: 0.155 | E11: =Table3[[#This Row],[Planned MH spend 2018/19 '[1']]]/Table3[[#This Row],[STP population]] -> 195.2073134
A12: Humber, Coast and Vale | B12: 1423408.641 | C12: 276908339.8 | D12: 0.151 | E12: =Table3[[#This Row],[Planned MH spend 2018/19 '[1']]]/Table3[[#This Row],[STP population]] -> 194.5388919
A13: Devon | B13: 1245914.905 | C13: 240830619.4 | D13: 0.149 | E13: =Table3[[#This Row],[Planned MH spend 2018/19 '[1']]]/Table3[[#This Row],[STP population]] -> 193.2962021
A14: Leicester, Leicestershire and Rutland | B14: 1007698.508 | C14: 193638496 | D14: 0.153 | E14: =Table3[[#This Row],[Planned MH spend 2018/19 '[1']]]/Table3[[#This Row],[STP population]] -> 192.1591571
A15: Staffordshire and Stoke on Trent | B15: 1164719.612 | C15: 221597049.8 | D15: 0.151 | E15: =Table3[[#This Row],[Planned MH spend 2018/19 '[1']]]/Table3[[#This Row],[STP population]] -> 190.2578505
A16: North West London | B16: 2172133.404 | C16: 406504715.3 | D16: 0.14 | E16: =Table3[[#This Row],[Planned MH spend 2018/19 '[1']]]/Table3[[#This Row],[STP population]] -> 187.1453726
A17: Lincolnshire | B17: 802412.2686 | C17: 146574000 | D17: 0.145 | E17: =Table3[[#This Row],[Planned MH spend 2018/19 '[1']]]/Table3[[#This Row],[STP population]] -> 182.6666986
A18: South East London | B18: 1956303.114 | C18: 354659690.7 | D18: 0.145 | E18: =Table3[[#This Row],[Planned MH spend 2018/19 '[1']]]/Table3[[#This Row],[STP population]] -> 181.2907663
A19: West Yorkshire | B19: 2674534.541 | C19: 483230446.4 | D19: 0.141 | E19: =Table3[[#This Row],[Planned MH spend 2018/19 '[1']]]/Table3[[#This Row],[STP population]] -> 180.6783345
A20: The Black Country and West Birmingham | B20: 1493614.935 | C20: 264767917.9 | D20: 0.141 | E20: =Table3[[#This Row],[Planned MH spend 2018/19 '[1']]]/Table3[[#This Row],[STP population]] -> 177.2665175
A21: Milton Keynes, Bedfordshire and Luton | B21: 947194.3605 | C21: 164909000 | D21: 0.141 | E21: =Table3[[#This Row],[Planned MH spend 2018/19 '[1']]]/Table3[[#This Row],[STP population]] -> 174.1025991
A22: Bristol, North Somerset and South Gloucestershire | B22: 933151.8215 | C22: 161293288 | D22: 0.136 | E22: =Table3[[#This Row],[Planned MH spend 2018/19 '[1']]]/Table3[[#This Row],[STP population]] -> 172.8478521
A23: Northamptonshire | B23: 732049.5106 | C23: 125337984.1 | D23: 0.139 | E23: =Table3[[#This Row],[Planned MH spend 2018/19 '[1']]]/Table3[[#This Row],[STP population]] -> 171.2151736
A24: Derbyshire | B24: 1073869.499 | C24: 182782916.5 | D24: 0.132 | E24: =Table3[[#This Row],[Planned MH spend 2018/19 '[1']]]/Table3[[#This Row],[STP population]] -> 170.2096174
A25: Hampshire and the Isle of Wight | B25: 1837886.011 | C25: 308755666.1 | D25: 0.134 | E25: =Table3[[#This Row],[Planned MH spend 2018/19 '[1']]]/Table3[[#This Row],[STP population]] -> 167.9950031
A26: Cheshire and Merseyside | B26: 2942004.38 | C26: 490942347.8 | D26: 0.13 | E26: =Table3[[#This Row],[Planned MH spend 2018/19 '[1']]]/Table3[[#This Row],[STP population]] -> 166.8734252
A27: South West London | B27: 1498827.969 | C27: 249191083.9 | D27: 0.13 | E27: =Table3[[#This Row],[Planned MH spend 2018/19 '[1']]]/Table3[[#This Row],[STP population]] -> 166.257295
A28: Suffolk and North East Essex | B28: 1016634.185 | C28: 168987568.9 | D28: 0.134 | E28: =Table3[[#This Row],[Planned MH spend 2018/19 '[1']]]/Table3[[#This Row],[STP population]] -> 166.2225915
A29: Herefordshire and Worcestershire | B29: 754655.0668 | C29: 124248805.2 | D29: 0.131 | E29: =Table3[[#This Row],[Planned MH spend 2018/19 '[1']]]/Table3[[#This Row],[STP population]] -> 164.6431737
A30: North East London | B30: 2008990.02 | C30: 330283654.6 | D30: 0.128 | E30: =Table3[[#This Row],[Planned MH spend 2018/19 '[1']]]/Table3[[#This Row],[STP population]] -> 164.402835
A31: Frimley Health | B31: 728013.8784 | C31: 119040901 | D31: 0.13 | E31: =Table3[[#This Row],[Planned MH spend 2018/19 '[1']]]/Table3[[#This Row],[STP population]] -> 163.514604
A32: Greater Manchester | B32: 3276942.579 | C32: 522139889 | D32: 0.127 | E32: =Table3[[#This Row],[Planned MH spend 2018/19 '[1']]]/Table3[[#This Row],[STP population]] -> 159.3375155
A33: Cambridgeshire and Peterborough | B33: 836822.2254 | C33: 131739010.5 | D33: 0.127 | E33: =Table3[[#This Row],[Planned MH spend 2018/19 '[1']]]/Table3[[#This Row],[STP population]] -> 157.4277147
A34: Sussex and East Surrey | B34: 1982633.415 | C34: 302998715.9 | D34: 0.12 | E34: =Table3[[#This Row],[Planned MH spend 2018/19 '[1']]]/Table3[[#This Row],[STP population]] -> 152.8263942
A35: Mid and South Essex | B35: 1203116.485 | C35: 180390268.9 | D35: 0.12 | E35: =Table3[[#This Row],[Planned MH spend 2018/19 '[1']]]/Table3[[#This Row],[STP population]] -> 149.9358301
A36: Hertfordshire and West Essex | B36: 1536665.252 | C36: 229683211.8 | D36: 0.12 | E36: =Table3[[#This Row],[Planned MH spend 2018/19 '[1']]]/Table3[[#This Row],[STP population]] -> 149.4686051
A37: Buckinghamshire, Oxfordshire and Berkshire West | B37: 1607013.988 | C37: 239703981.7 | D37: 0.122 | E37: =Table3[[#This Row],[Planned MH spend 2018/19 '[1']]]/Table3[[#This Row],[STP population]] -> 149.1611047
A38: Kent and Medway | B38: 1851745.839 | C38: 266058444.3 | D38: 0.113 | E38: =Table3[[#This Row],[Planned MH spend 2018/19 '[1']]]/Table3[[#This Row],[STP population]] -> 143.6797852
A39: Bath and North East Somerset, Swindon and Wiltshire | B39: 898054.617 | C39: 126812019.2 | D39: 0.113 | E39: =Table3[[#This Row],[Planned MH spend 2018/19 '[1']]]/Table3[[#This Row],[STP population]] -> 141.2074687
A40: Somerset | B40: 589777.7515 | C40: 82422000 | D40: 0.112 | E40: =Table3[[#This Row],[Planned MH spend 2018/19 '[1']]]/Table3[[#This Row],[STP population]] -> 139.7509482
A41: Gloucestershire | B41: 615442.5766 | C41: 84318572.98 | D41: 0.11 | E41: =Table3[[#This Row],[Planned MH spend 2018/19 '[1']]]/Table3[[#This Row],[STP population]] -> 137.004777
A42: Shropshire and Telford and Wrekin | B42: 494006.387 | C42: 66577330.6 | D42: 0.109 | E42: =Table3[[#This Row],[Planned MH spend 2018/19 '[1']]]/Table3[[#This Row],[STP population]] -> 134.7701818
A43: Surrey Heartlands | B43: 860969.2591 | C43: 107172007 | D43: 0.1 | E43: =Table3[[#This Row],[Planned MH spend 2018/19 '[1']]]/Table3[[#This Row],[STP population]] -> 124.4783201

Sheet STP Weighted population calc
A1: CCG Current Name | B1: CCG Amended (allowing for mergers) | C1: CCG Weighted Population [3] | D1: STP population | E1: STP Code | F1: STP Name [4] | G1: Notes
A2: NHS Airedale, Wharfedale and Craven CCG | B2: NHS Airedale, Wharfedale and Craven CCG | C2: =VLOOKUP('STP Weighted population calc'!$B2,CCGPopulation[],11,FALSE) -> 169233.6087 | D2: =SUM(C2:C12) -> 2674534.541 | E2: E54000005 | F2: West Yorkshire
A3: NHS Bradford City CCG | B3: NHS Bradford City CCG | C3: =VLOOKUP('STP Weighted population calc'!$B3,CCGPopulation[],11,FALSE) -> 113620.7809 | E3: E54000005
A4: NHS Bradford Districts CCG | B4: NHS Bradford Districts CCG | C4: =VLOOKUP('STP Weighted population calc'!$B4,CCGPopulation[],11,FALSE) -> 364067.7969 | E4: E54000005
A5: NHS Calderdale CCG | B5: NHS Calderdale CCG | C5: =VLOOKUP('STP Weighted population calc'!$B5,CCGPopulation[],11,FALSE) -> 214577.5061 | E5: E54000005
A6: NHS Greater Huddersfield CCG | B6: NHS Greater Huddersfield CCG | C6: =VLOOKUP('STP Weighted population calc'!$B6,CCGPopulation[],11,FALSE) -> 231822.3562 | E6: E54000005
A7: NHS Harrogate and Rural District CCG | B7: NHS Harrogate and Rural District CCG | C7: =VLOOKUP('STP Weighted population calc'!$B7,CCGPopulation[],11,FALSE) -> 152896.1901 | E7: E54000005
A8: NHS North Kirklees CCG | B8: NHS North Kirklees CCG | C8: =VLOOKUP('STP Weighted population calc'!$B8,CCGPopulation[],11,FALSE) -> 186710.6452 | E8: E54000005
A9: NHS Wakefield CCG | B9: NHS Wakefield CCG | C9: =VLOOKUP('STP Weighted population calc'!$B9,CCGPopulation[],11,FALSE) -> 394588.339 | E9: E54000005
A10: NHS Leeds CCG | B10: NHS Leeds North CCG | C10: =VLOOKUP('STP Weighted population calc'!$B10,CCGPopulation[],11,FALSE) -> 204189.2258 | E10: E54000005 | G10: Merger: Leeds North, Leeds South and East, and Leeds West CCGs into Leeds CCG
A11: NHS Leeds CCG | B11: NHS Leeds South and East CCG | C11: =VLOOKUP('STP Weighted population calc'!$B11,CCGPopulation[],11,FALSE) -> 307057.3824 | E11: E54000005 | G11: Merger: Leeds North, Leeds South and East, and Leeds West CCGs into Leeds CCG
A12: NHS Leeds CCG | B12: NHS Leeds West CCG | C12: =VLOOKUP('STP Weighted population calc'!$B12,CCGPopulation[],11,FALSE) -> 335770.7093 | E12: E54000005 | G12: Merger: Leeds North, Leeds South and East, and Leeds West CCGs into Leeds CCG
A13: NHS East Riding of Yorkshire CCG | B13: NHS East Riding of Yorkshire CCG | C13: =VLOOKUP('STP Weighted population calc'!$B13,CCGPopulation[],11,FALSE) -> 310609.7835 | D13: =SUM(C13:C18) -> 1423408.641 | E13: E54000006 | F13: Humber, Coast and Vale
A14: NHS Hull CCG | B14: NHS Hull CCG | C14: =VLOOKUP('STP Weighted population calc'!$B14,CCGPopulation[],11,FALSE) -> 308434.8764 | E14: E54000006
A15: NHS North East Lincolnshire CCG | B15: NHS North East Lincolnshire CCG | C15: =VLOOKUP('STP Weighted population calc'!$B15,CCGPopulation[],11,FALSE) -> 178366.2126 | E15: E54000006
A16: NHS North Lincolnshire CCG | B16: NHS North Lincolnshire CCG | C16: =VLOOKUP('STP Weighted population calc'!$B16,CCGPopulation[],11,FALSE) -> 177864.7151 | E16: E54000006
A17: NHS Scarborough and Ryedale CCG | B17: NHS Scarborough and Ryedale CCG | C17: =VLOOKUP('STP Weighted population calc'!$B17,CCGPopulation[],11,FALSE) -> 128160.9966 | E17: E54000006
A18: NHS Vale of York CCG | B18: NHS Vale of York CCG | C18: =VLOOKUP('STP Weighted population calc'!$B18,CCGPopulation[],11,FALSE) -> 319972.0568 | E18: E54000006
A19: NHS Bolton CCG | B19: NHS Bolton CCG | C19: =VLOOKUP('STP Weighted population calc'!$B19,CCGPopulation[],11,FALSE) -> 334724.2123 | D19: =SUM(C19:C30) -> 3276942.579 | E19: E54000007 | F19: Greater Manchester
A20: NHS Bury CCG | B20: NHS Bury CCG | C20: =VLOOKUP('STP Weighted population calc'!$B20,CCGPopulation[],11,FALSE) -> 213189.5659 | E20: E54000007
A21: NHS Heywood, Middleton and Rochdale CCG | B21: NHS Heywood, Middleton and Rochdale CCG | C21: =VLOOKUP('STP Weighted population calc'!$B21,CCGPopulation[],11,FALSE) -> 261232.8442 | E21: E54000007
A22: NHS Oldham CCG | B22: NHS Oldham CCG | C22: =VLOOKUP('STP Weighted population calc'!$B22,CCGPopulation[],11,FALSE) -> 266660.6789 | E22: E54000007
A23: NHS Salford CCG | B23: NHS Salford CCG | C23: =VLOOKUP('STP Weighted population calc'!$B23,CCGPopulation[],11,FALSE) -> 313157.5738 | E23: E54000007
A24: NHS Stockport CCG | B24: NHS Stockport CCG | C24: =VLOOKUP('STP Weighted population calc'!$B24,CCGPopulation[],11,FALSE) -> 338933.7663 | E24: E54000007
A25: NHS Tameside and Glossop CCG | B25: NHS Tameside and Glossop CCG | C25: =VLOOKUP('STP Weighted population calc'!$B25,CCGPopulation[],11,FALSE) -> 281192.8885 | E25: E54000007
A26: NHS Trafford CCG | B26: NHS Trafford CCG | C26: =VLOOKUP('STP Weighted population calc'!$B26,CCGPopulation[],11,FALSE) -> 243955.851 | E26: E54000007
A27: NHS Wigan Borough CCG | B27: NHS Wigan Borough CCG | C27: =VLOOKUP('STP Weighted population calc'!$B27,CCGPopulation[],11,FALSE) -> 368954.5506 | E27: E54000007
A28: NHS Manchester CCG | B28: NHS Central Manchester CCG | C28: =VLOOKUP('STP Weighted population calc'!$B28,CCGPopulation[],11,FALSE) -> 220653.6386 | E28: E54000007 | G28: Merger: Central Manchester, North Manchester and South Manchester CCGs into Manchester CCG
A29: NHS Manchester CCG | B29: NHS North Manchester CCG | C29: =VLOOKUP('STP Weighted population calc'!$B29,CCGPopulation[],11,FALSE) -> 245473.9242 | E29: E54000007 | G29: Merger: Central Manchester, North Manchester and South Manchester CCGs into Manchester CCG
A30: NHS Manchester CCG | B30: NHS South Manchester CCG | C30: =VLOOKUP('STP Weighted population calc'!$B30,CCGPopulation[],11,FALSE) -> 188813.0846 | E30: E54000007 | G30: Merger: Central Manchester, North Manchester and South Manchester CCGs into Manchester CCG
A31: NHS Eastern Cheshire CCG | B31: NHS Eastern Cheshire CCG | C31: =VLOOKUP('STP Weighted population calc'!$B31,CCGPopulation[],11,FALSE) -> 209587.9702 | D31: =SUM(C31:C42) -> 2942004.38 | E31: E54000008 | F31: Cheshire and Merseyside
A32: NHS Halton CCG | B32: NHS Halton CCG | C32: =VLOOKUP('STP Weighted population calc'!$B32,CCGPopulation[],11,FALSE) -> 152786.8435 | E32: E54000008
A33: NHS Knowsley CCG | B33: NHS Knowsley CCG | C33: =VLOOKUP('STP Weighted population calc'!$B33,CCGPopulation[],11,FALSE) -> 205175.3507 | E33: E54000008
A34: NHS Liverpool CCG | B34: NHS Liverpool CCG | C34: =VLOOKUP('STP Weighted population calc'!$B34,CCGPopulation[],11,FALSE) -> 599637.6291 | E34: E54000008
A35: NHS South Cheshire CCG | B35: NHS South Cheshire CCG | C35: =VLOOKUP('STP Weighted population calc'!$B35,CCGPopulation[],11,FALSE) -> 189232.0964 | E35: E54000008
A36: NHS South Sefton CCG | B36: NHS South Sefton CCG | C36: =VLOOKUP('STP Weighted population calc'!$B36,CCGPopulation[],11,FALSE) -> 184165.9226 | E36: E54000008
A37: NHS Southport and Formby CCG | B37: NHS Southport and Formby CCG | C37: =VLOOKUP('STP Weighted population calc'!$B37,CCGPopulation[],11,FALSE) -> 143167.991 | E37: E54000008
A38: NHS St Helens CCG | B38: NHS St Helens CCG | C38: =VLOOKUP('STP Weighted population calc'!$B38,CCGPopulation[],11,FALSE) -> 235716.7319 | E38: E54000008
A39: NHS Vale Royal CCG | B39: NHS Vale Royal CCG | C39: =VLOOKUP('STP Weighted population calc'!$B39,CCGPopulation[],11,FALSE) -> 109135.5691 | E39: E54000008
A40: NHS Warrington CCG | B40: NHS Warrington CCG | C40: =VLOOKUP('STP Weighted population calc'!$B40,CCGPopulation[],11,FALSE) -> 226810.4949 | E40: E54000008
A41: NHS West Cheshire CCG | B41: NHS West Cheshire CCG | C41: =VLOOKUP('STP Weighted population calc'!$B41,CCGPopulation[],11,FALSE) -> 277241.9081 | E41: E54000008
A42: NHS Wirral CCG | B42: NHS Wirral CCG | C42: =VLOOKUP('STP Weighted population calc'!$B42,CCGPopulation[],11,FALSE) -> 409345.8729 | E42: E54000008
A43: NHS Barnsley CCG | B43: NHS Barnsley CCG | C43: =VLOOKUP('STP Weighted population calc'!$B43,CCGPopulation[],11,FALSE) -> 286855.0411 | D43: =SUM(C43:C47) -> 1603622.636 | E43: E54000009 | F43: South Yorkshire and Bassetlaw
A44: NHS Bassetlaw CCG | B44: NHS Bassetlaw CCG | C44: =VLOOKUP('STP Weighted population calc'!$B44,CCGPopulation[],11,FALSE) -> 124228.6271 | E44: E54000009
A45: NHS Doncaster CCG | B45: NHS Doncaster CCG | C45: =VLOOKUP('STP Weighted population calc'!$B45,CCGPopulation[],11,FALSE) -> 341260.6138 | E45: E54000009
A46: NHS Rotherham CCG | B46: NHS Rotherham CCG | C46: =VLOOKUP('STP Weighted population calc'!$B46,CCGPopulation[],11,FALSE) -> 275030.364 | E46: E54000009
A47: NHS Sheffield CCG | B47: NHS Sheffield CCG | C47: =VLOOKUP('STP Weighted population calc'!$B47,CCGPopulation[],11,FALSE) -> 576247.9896 | E47: E54000009
A48: NHS Cannock Chase CCG | B48: NHS Cannock Chase CCG | C48: =VLOOKUP('STP Weighted population calc'!$B48,CCGPopulation[],11,FALSE) -> 137308.9931 | D48: =SUM(C48:C53) -> 1164719.612 | E48: E54000010 | F48: Staffordshire and Stoke on Trent
A49: NHS East Staffordshire CCG | B49: NHS East Staffordshire CCG | C49: =VLOOKUP('STP Weighted population calc'!$B49,CCGPopulation[],11,FALSE) -> 133571.1446 | E49: E54000010
A50: NHS North Staffordshire CCG | B50: NHS North Staffordshire CCG | C50: =VLOOKUP('STP Weighted population calc'!$B50,CCGPopulation[],11,FALSE) -> 224641.1107 | E50: E54000010
A51: NHS South East Staffs and Seisdon Peninsular CCG | B51: NHS South East Staffs and Seisdon Peninsular CCG | C51: =VLOOKUP('STP Weighted population calc'!$B51,CCGPopulation[],11,FALSE) -> 211839.8199 | E51: E54000010
A52: NHS Stafford and Surrounds CCG | B52: NHS Stafford and Surrounds CCG | C52: =VLOOKUP('STP Weighted population calc'!$B52,CCGPopulation[],11,FALSE) -> 143066.5718 | E52: E54000010
A53: NHS Stoke on Trent CCG | B53: NHS Stoke on Trent CCG | C53: =VLOOKUP('STP Weighted population calc'!$B53,CCGPopulation[],11,FALSE) -> 314291.9719 | E53: E54000010
A54: NHS Shropshire CCG | B54: NHS Shropshire CCG | C54: =VLOOKUP('STP Weighted population calc'!$B54,CCGPopulation[],11,FALSE) -> 318436.6466 | D54: =SUM(C54:C55) -> 494006.387 | E54: E54000011 | F54: Shropshire and Telford and Wrekin
A55: NHS Telford and Wrekin CCG | B55: NHS Telford and Wrekin CCG | C55: =VLOOKUP('STP Weighted population calc'!$B55,CCGPopulation[],11,FALSE) -> 175569.7404 | E55: E54000011
A56: NHS Erewash CCG | B56: NHS Erewash CCG | C56: =VLOOKUP('STP Weighted population calc'!$B56,CCGPopulation[],11,FALSE) -> 102677.8445 | D56: =SUM(C56:C59) -> 1073869.499 | E56: E54000012 | F56: Derbyshire
A57: NHS Hardwick CCG | B57: NHS Hardwick CCG | C57: =VLOOKUP('STP Weighted population calc'!$B57,CCGPopulation[],11,FALSE) -> 116127.3588 | E57: E54000012
A58: NHS North Derbyshire CCG | B58: NHS North Derbyshire CCG | C58: =VLOOKUP('STP Weighted population calc'!$B58,CCGPopulation[],11,FALSE) -> 301799.9657 | E58: E54000012
A59: NHS Southern Derbyshire CCG | B59: NHS Southern Derbyshire CCG | C59: =VLOOKUP('STP Weighted population calc'!$B59,CCGPopulation[],11,FALSE) -> 553264.3298 | E59: E54000012
A60: NHS Lincolnshire East CCG | B60: NHS Lincolnshire East CCG | C60: =VLOOKUP('STP Weighted population calc'!$B60,CCGPopulation[],11,FALSE) -> 279199.93 | D60: =SUM(C60:C63) -> 802412.2686 | E60: E54000013 | F60: Lincolnshire
A61: NHS Lincolnshire West CCG | B61: NHS Lincolnshire West CCG | C61: =VLOOKUP('STP Weighted population calc'!$B61,CCGPopulation[],11,FALSE) -> 228718.626 | E61: E54000013
A62: NHS South Lincolnshire CCG | B62: NHS South Lincolnshire CCG | C62: =VLOOKUP('STP Weighted population calc'!$B62,CCGPopulation[],11,FALSE) -> 165785.3609 | E62: E54000013
A63: NHS South West Lincolnshire CCG | B63: NHS South West Lincolnshire CCG | C63: =VLOOKUP('STP Weighted population calc'!$B63,CCGPopulation[],11,FALSE) -> 128708.3516 | E63: E54000013
A64: NHS Mansfield and Ashfield CCG | B64: NHS Mansfield and Ashfield CCG | C64: =VLOOKUP('STP Weighted population calc'!$B64,CCGPopulation[],11,FALSE) -> 211811.6505 | D64: =SUM(C64:C69) -> 1064279.904 | E64: E54000014 | F64: Nottingham and Nottinghamshire Health and Care
A65: NHS Newark and Sherwood CCG | B65: NHS Newark and Sherwood CCG | C65: =VLOOKUP('STP Weighted population calc'!$B65,CCGPopulation[],11,FALSE) -> 137846.0773 | E65: E54000014
A66: NHS Nottingham City CCG | B66: NHS Nottingham City CCG | C66: =VLOOKUP('STP Weighted population calc'!$B66,CCGPopulation[],11,FALSE) -> 347616.5696 | E66: E54000014
A67: NHS Nottingham North and East CCG | B67: NHS Nottingham North and East CCG | C67: =VLOOKUP('STP Weighted population calc'!$B67,CCGPopulation[],11,FALSE) -> 154497.9458 | E67: E54000014
A68: NHS Nottingham West CCG | B68: NHS Nottingham West CCG | C68: =VLOOKUP('STP Weighted population calc'!$B68,CCGPopulation[],11,FALSE) -> 96359.56439 | E68: E54000014
A69: NHS Rushcliffe CCG | B69: NHS Rushcliffe CCG | C69: =VLOOKUP('STP Weighted population calc'!$B69,CCGPopulation[],11,FALSE) -> 116148.0962 | E69: E54000014
A70: NHS Leicester City CCG | B70: NHS Leicester City CCG | C70: =VLOOKUP('STP Weighted population calc'!$B70,CCGPopulation[],11,FALSE) -> 358785.9235 | D70: =SUM(C70:C72) -> 1007698.508 | E70: E54000015 | F70: Leicester, Leicestershire and Rutland
A71: NHS West Leicestershire CCG | B71: NHS West Leicestershire CCG | C71: =VLOOKUP('STP Weighted population calc'!$B71,CCGPopulation[],11,FALSE) -> 347007.4572 | E71: E54000015
A72: NHS East Leicestershire and Rutland CCG | B72: NHS East Leicestershire and Rutland CCG | C72: =VLOOKUP('STP Weighted population calc'!$B72,CCGPopulation[],11,FALSE) -> 301905.1274 | E72: E54000015
A73: NHS Richmond CCG | B73: NHS Richmond CCG | C73: =VLOOKUP('STP Weighted population calc'!$B73,CCGPopulation[],11,FALSE) -> 183968.5476 | D73: =SUM(C73:C78) -> 1498827.969 | E73: E54000031 | F73: South West London
A74: NHS Sutton CCG | B74: NHS Sutton CCG | C74: =VLOOKUP('STP Weighted population calc'!$B74,CCGPopulation[],11,FALSE) -> 200461.1392 | E74: E54000031
A75: NHS Wandsworth CCG | B75: NHS Wandsworth CCG | C75: =VLOOKUP('STP Weighted population calc'!$B75,CCGPopulation[],11,FALSE) -> 324747.6027 | E75: E54000031
A76: NHS Croydon CCG | B76: NHS Croydon CCG | C76: =VLOOKUP('STP Weighted population calc'!$A76,CCGPopulation[],11,FALSE) -> 406112.5842 | E76: E54000031
A77: NHS Kingston CCG | B77: NHS Kingston CCG | C77: =VLOOKUP('STP Weighted population calc'!$A77,CCGPopulation[],11,FALSE) -> 184012.5395 | E77: E54000031
A78: NHS Merton CCG | B78: NHS Merton CCG | C78: =VLOOKUP('STP Weighted population calc'!$A78,CCGPopulation[],11,FALSE) -> 199525.5562 | E78: E54000031
A79: NHS Ashford CCG | B79: NHS Ashford CCG | C79: =VLOOKUP('STP Weighted population calc'!$B79,CCGPopulation[],11,FALSE) -> 116401.2395 | D79: =SUM(C79:C86) -> 1851745.839 | E79: E54000032 | F79: Kent and Medway
A80: NHS Canterbury and Coastal CCG | B80: NHS Canterbury and Coastal CCG | C80: =VLOOKUP('STP Weighted population calc'!$B80,CCGPopulation[],11,FALSE) -> 208561.5504 | E80: E54000032
A81: NHS Dartford, Gravesham and Swanley CCG | B81: NHS Dartford, Gravesham and Swanley CCG | C81: =VLOOKUP('STP Weighted population calc'!$B81,CCGPopulation[],11,FALSE) -> 264498.679 | E81: E54000032
A82: NHS Medway CCG | B82: NHS Medway CCG | C82: =VLOOKUP('STP Weighted population calc'!$B82,CCGPopulation[],11,FALSE) -> 295780.1147 | E82: E54000032
A83: NHS South Kent Coast CCG | B83: NHS South Kent Coast CCG | C83: =VLOOKUP('STP Weighted population calc'!$B83,CCGPopulation[],11,FALSE) -> 215834.4462 | E83: E54000032
A84: NHS Swale CCG | B84: NHS Swale CCG | C84: =VLOOKUP('STP Weighted population calc'!$B84,CCGPopulation[],11,FALSE) -> 117272.5015 | E84: E54000032
A85: NHS Thanet CCG | B85: NHS Thanet CCG | C85: =VLOOKUP('STP Weighted population calc'!$B85,CCGPopulation[],11,FALSE) -> 169159.3807 | E85: E54000032
A86: NHS West Kent CCG | B86: NHS West Kent CCG | C86: =VLOOKUP('STP Weighted population calc'!$B86,CCGPopulation[],11,FALSE) -> 464237.9266 | E86: E54000032
A87: NHS Brighton and Hove CCG | B87: NHS Brighton and Hove CCG | C87: =VLOOKUP('STP Weighted population calc'!$B87,CCGPopulation[],11,FALSE) -> 284379.3235 | D87: =SUM(C87:C94) -> 1982633.415 | E87: E54000033 | F87: Sussex and East Surrey
A88: NHS Crawley CCG | B88: NHS Crawley CCG | C88: =VLOOKUP('STP Weighted population calc'!$B88,CCGPopulation[],11,FALSE) -> 128796.2543 | E88: E54000033
A89: NHS East Surrey CCG | B89: NHS East Surrey CCG | C89: =VLOOKUP('STP Weighted population calc'!$B89,CCGPopulation[],11,FALSE) -> 181312.426 | E89: E54000033
A90: NHS Eastbourne, Hailsham and Seaford CCG | B90: NHS Eastbourne, Hailsham and Seaford CCG | C90: =VLOOKUP('STP Weighted population calc'!$B90,CCGPopulation[],11,FALSE) -> 217874.0621 | E90: E54000033
A91: NHS Hastings and Rother CCG | B91: NHS Hastings and Rother CCG | C91: =VLOOKUP('STP Weighted population calc'!$B91,CCGPopulation[],11,FALSE) -> 210726.7358 | E91: E54000033
A92: NHS High Weald Lewes Havens CCG | B92: NHS High Weald Lewes Havens CCG | C92: =VLOOKUP('STP Weighted population calc'!$B92,CCGPopulation[],11,FALSE) -> 166982.6511 | E92: E54000033
A93: NHS Horsham and Mid Sussex CCG | B93: NHS Horsham and Mid Sussex CCG | C93: =VLOOKUP('STP Weighted population calc'!$B93,CCGPopulation[],11,FALSE) -> 219906.1604 | E93: E54000033
A94: NHS Coastal West Sussex CCG | B94: NHS Coastal West Sussex CCG | C94: =VLOOKUP('STP Weighted population calc'!$B94,CCGPopulation[],11,FALSE) -> 572655.8021 | E94: E54000033
A95: NHS North East Hampshire and Farnham CCG | B95: NHS North East Hampshire and Farnham CCG | C95: =VLOOKUP('STP Weighted population calc'!$B95,CCGPopulation[],11,FALSE) -> 217753.1844 | D95: =SUM(C95:C99) -> 728013.8784 | E95: E54000034 | F95: Frimley Health | G95: Merger: Bracknell and Ascot, Slough, and Windsor, Ascot and Maidenhead CCGs into East Berkshire CCG
A96: NHS Surrey Heath CCG | B96: NHS Surrey Heath CCG | C96: =VLOOKUP('STP Weighted population calc'!$B96,CCGPopulation[],11,FALSE) -> 94191.52069 | E96: E54000034
A97: NHS East Berkshire CCG | B97: NHS Windsor, Ascot and Maidenhead CCG | C97: =VLOOKUP('STP Weighted population calc'!$B97,CCGPopulation[],11,FALSE) -> 142121.3843 | E97: E54000034
A98: NHS East Berkshire CCG | B98: NHS Slough CCG | C98: =VLOOKUP('STP Weighted population calc'!$B98,CCGPopulation[],11,FALSE) -> 143899.8662 | E98: E54000034
A99: NHS East Berkshire CCG | B99: NHS Bracknell and Ascot CCG | C99: =VLOOKUP('STP Weighted population calc'!$B99,CCGPopulation[],11,FALSE) -> 130047.9229 | E99: E54000034
A100: NHS North West Surrey CCG | B100: NHS North West Surrey CCG | C100: =VLOOKUP('STP Weighted population calc'!$B100,CCGPopulation[],11,FALSE) -> 359402.4117 | D100: =SUM(C100:C102) -> 860969.2591 | E100: E54000035 | F100: Surrey Heartlands
A101: NHS Surrey Downs CCG | B101: NHS Surrey Downs CCG | C101: =VLOOKUP('STP Weighted population calc'!$B101,CCGPopulation[],11,FALSE) -> 297059.3648 | E101: E54000035
A102: NHS Guildford and Waverley CCG | B102: NHS Guildford and Waverley CCG | C102: =VLOOKUP('STP Weighted population calc'!$B102,CCGPopulation[],11,FALSE) -> 204507.4826 | E102: E54000035
A103: NHS Kernow CCG | B103: NHS Kernow CCG | C103: =VLOOKUP('STP Weighted population calc'!$B103,CCGPopulation[],11,FALSE) -> 599303.2074 | D103: =SUM(C103) -> 599303.2074 | E103: E54000036 | F103: Cornwall and the Isles of Scilly
A104: NHS North, East, West Devon CCG | B104: NHS North, East, West Devon CCG | C104: =VLOOKUP('STP Weighted population calc'!$B104,CCGPopulation[],11,FALSE) -> 936896.1162 | D104: =SUM(C104:C105) -> 1245914.905 | E104: E54000037 | F104: Devon
A105: NHS South Devon and Torbay CCG | B105: NHS South Devon and Torbay CCG | C105: =VLOOKUP('STP Weighted population calc'!$B105,CCGPopulation[],11,FALSE) -> 309018.789 | E105: E54000037
A106: NHS Somerset CCG | B106: NHS Somerset CCG | C106: =VLOOKUP('STP Weighted population calc'!$B106,CCGPopulation[],11,FALSE) -> 589777.7515 | D106: =SUM(C106) -> 589777.7515 | E106: E54000038 | F106: Somerset
A107: NHS Bristol CCG | B107: NHS Bristol CCG | C107: =VLOOKUP('STP Weighted population calc'!$B107,CCGPopulation[],11,FALSE) -> 462219.3979 | D107: =SUM(C107:C109) -> 933151.8215 | E107: E54000039 | F107: Bristol, North Somerset and South Gloucestershire
A108: NHS North Somerset CCG | B108: NHS North Somerset CCG | C108: =VLOOKUP('STP Weighted population calc'!$B108,CCGPopulation[],11,FALSE) -> 229456.9482 | E108: E54000039
A109: NHS South Gloucestershire CCG | B109: NHS South Gloucestershire CCG | C109: =VLOOKUP('STP Weighted population calc'!$B109,CCGPopulation[],11,FALSE) -> 241475.4755 | E109: E54000039
A110: NHS Bath and North East Somerset CCG | B110: NHS Bath and North East Somerset CCG | C110: =VLOOKUP('STP Weighted population calc'!$B110,CCGPopulation[],11,FALSE) -> 190109.5805 | D110: =SUM(C110:C112) -> 898054.617 | E110: E54000040 | F110: Bath and North East Somerset, Swindon and Wiltshire | G110: Formerly called Bath, Swindon and Wiltshire STP (name change not merger)
A111: NHS Swindon CCG | B111: NHS Swindon CCG | C111: =VLOOKUP('STP Weighted population calc'!$B111,CCGPopulation[],11,FALSE) -> 218983.2306 | E111: E54000040
A112: NHS Wiltshire CCG | B112: NHS Wiltshire CCG | C112: =VLOOKUP('STP Weighted population calc'!$B112,CCGPopulation[],11,FALSE) -> 488961.8059 | E112: E54000040
A113: NHS Dorset CCG | B113: NHS Dorset CCG | C113: =VLOOKUP('STP Weighted population calc'!$B113,CCGPopulation[],11,FALSE) -> 839480.3677 | D113: =VLOOKUP('STP Weighted population calc'!$B113,CCGPopulation[],11,FALSE) -> 839480.3677 | E113: E54000041 | F113: Dorset
A114: NHS Fareham and Gosport CCG | B114: NHS Fareham and Gosport CCG | C114: =VLOOKUP('STP Weighted population calc'!$B114,CCGPopulation[],11,FALSE) -> 201724.8392 | D114: =SUM(C114:C120) -> 1837886.011 | E114: E54000042 | F114: Hampshire and the Isle of Wight
A115: NHS Isle of Wight CCG | B115: NHS Isle of Wight CCG | C115: =VLOOKUP('STP Weighted population calc'!$B115,CCGPopulation[],11,FALSE) -> 152769.1856 | E115: E54000042
A116: NHS North Hampshire CCG | B116: NHS North Hampshire CCG | C116: =VLOOKUP('STP Weighted population calc'!$B116,CCGPopulation[],11,FALSE) -> 213267.9048 | E116: E54000042
A117: NHS Portsmouth CCG | B117: NHS Portsmouth CCG | C117: =VLOOKUP('STP Weighted population calc'!$B117,CCGPopulation[],11,FALSE) -> 216609.4959 | E117: E54000042
A118: NHS South Eastern Hampshire CCG | B118: NHS South Eastern Hampshire CCG | C118: =VLOOKUP('STP Weighted population calc'!$B118,CCGPopulation[],11,FALSE) -> 219455.225 | E118: E54000042
A119: NHS Southampton CCG | B119: NHS Southampton CCG | C119: =VLOOKUP('STP Weighted population calc'!$B119,CCGPopulation[],11,FALSE) -> 274192.1169 | E119: E54000042
A120: NHS West Hampshire CCG | B120: NHS West Hampshire CCG | C120: =VLOOKUP('STP Weighted population calc'!$B120,CCGPopulation[],11,FALSE) -> 559867.2436 | E120: E54000042
A121: NHS Gloucestershire CCG | B121: NHS Gloucestershire CCG | C121: =VLOOKUP('STP Weighted population calc'!$B121,CCGPopulation[],11,FALSE) -> 615442.5766 | D121: =VLOOKUP('STP Weighted population calc'!$B121,CCGPopulation[],11,FALSE) -> 615442.5766 | E121: E54000043 | F121: Gloucestershire
A122: NHS Oxfordshire CCG | B122: NHS Oxfordshire CCG | C122: =VLOOKUP('STP Weighted population calc'!$B122,CCGPopulation[],11,FALSE) -> 634798.2917 | D122: =SUM(C122:C128) -> 1607013.988 | E122: E54000044 | F122: Buckinghamshire, Oxfordshire and Berkshire West | G122: Merger - Chiltern CCG and Aylesbury Vale CCG now Buckinghamshire CCG, and South Reading CCG, North and West Reading CCG, Newbury and District CCG and Wokingham CCG now Berkshire West CCG
A123: NHS Berkshire West CCG | B123: NHS South Reading CCG | C123: =VLOOKUP('STP Weighted population calc'!$B123,CCGPopulation[],11,FALSE) -> 114509.28 | E123: E54000044
A124: NHS Berkshire West CCG | B124: NHS North and West Reading CCG | C124: =VLOOKUP('STP Weighted population calc'!$B124,CCGPopulation[],11,FALSE) -> 104808.5841 | E124: E54000044
A125: NHS Berkshire West CCG | B125: NHS Newbury and District CCG | C125: =VLOOKUP('STP Weighted population calc'!$B125,CCGPopulation[],11,FALSE) -> 108571.6739 | E125: E54000044
A126: NHS Berkshire West CCG | B126: NHS Wokingham CCG | C126: =VLOOKUP('STP Weighted population calc'!$B126,CCGPopulation[],11,FALSE) -> 140326.9693 | E126: E54000044
A127: NHS Buckinghamshire CCG | B127: NHS Chiltern CCG | C127: =VLOOKUP('STP Weighted population calc'!$B127,CCGPopulation[],11,FALSE) -> 307095.1807 | E127: E54000044
A128: NHS Buckinghamshire CCG | B128: NHS Aylesbury Vale CCG | C128: =VLOOKUP('STP Weighted population calc'!$B128,CCGPopulation[],11,FALSE) -> 196904.0082 | E128: E54000044
A129: NHS Blackburn with Darwen CCG | B129: NHS Blackburn with Darwen CCG | C129: =VLOOKUP('STP Weighted population calc'!$B129,CCGPopulation[],11,FALSE) -> 183583.4208 | D129: =SUM(C129:C136) -> 1681465.372 | E129: E54000048 | F129: Lancashire and South Cumbria | G129: Merger - Lancashire North CCG now Morecombe Bay CCG
A130: NHS Blackpool CCG | B130: NHS Blackpool CCG | C130: =VLOOKUP('STP Weighted population calc'!$B130,CCGPopulation[],11,FALSE) -> 214906.5716 | E130: E54000048
A131: NHS Chorley and South Ribble CCG | B131: NHS Chorley and South Ribble CCG | C131: =VLOOKUP('STP Weighted population calc'!$B131,CCGPopulation[],11,FALSE) -> 187066.5513 | E131: E54000048
A132: NHS East Lancashire CCG | B132: NHS East Lancashire CCG | C132: =VLOOKUP('STP Weighted population calc'!$B132,CCGPopulation[],11,FALSE) -> 417665.7976 | E132: E54000048
A133: NHS West Lancashire CCG | B133: NHS West Lancashire CCG | C133: =VLOOKUP('STP Weighted population calc'!$B133,CCGPopulation[],11,FALSE) -> 118401.3534 | E133: E54000048
A134: NHS Fylde and Wyre CCG | B134: NHS Fylde and Wyre CCG | C134: =VLOOKUP('STP Weighted population calc'!$B134,CCGPopulation[],11,FALSE) -> 173878.9417 | E134: E54000048
A135: NHS Greater Preston CCG | B135: NHS Greater Preston CCG | C135: =VLOOKUP('STP Weighted population calc'!$B135,CCGPopulation[],11,FALSE) -> 219062.0971 | E135: E54000048
A136: NHS Morecambe Bay CCG | B136: NHS Lancashire North CCG | C136: =VLOOKUP('STP Weighted population calc'!$B136,CCGPopulation[],11,FALSE) -> 166900.6382 | E136: E54000048
A137: NHS Darlington CCG | B137: NHS Darlington CCG | C137: =VLOOKUP('STP Weighted population calc'!$B137,CCGPopulation[],11,FALSE) -> 119281.2442 | D137: =SUM(C137:C148) -> 3793912.527 | E137: E54000049 | F137: Cumbria and North East STP | G137: Now Durham, Darlington, Teesside, Hambleton, Richmondshire and Whitby
A138: NHS Durham Dales, Easington and Sedgefield CCG | B138: NHS Durham Dales, Easington and Sedgefield CCG | C138: =VLOOKUP('STP Weighted population calc'!$B138,CCGPopulation[],11,FALSE) -> 348902.4542 | E138: E54000049
A139: NHS Hambleton, Richmondshire and Whitby CCG | B139: NHS Hambleton, Richmondshire and Whitby CCG | C139: =VLOOKUP('STP Weighted population calc'!$B139,CCGPopulation[],11,FALSE) -> 143479.6395 | E139: E54000049
A140: NHS Hartlepool and Stockton-on-Tees CCG | B140: NHS Hartlepool and Stockton-on-Tees CCG | C140: =VLOOKUP('STP Weighted population calc'!$B140,CCGPopulation[],11,FALSE) -> 332472.221 | E140: E54000049
A141: NHS South Tees CCG | B141: NHS South Tees CCG | C141: =VLOOKUP('STP Weighted population calc'!$B141,CCGPopulation[],11,FALSE) -> 339943.9866 | E141: E54000049
A142: NHS North Durham CCG | B142: NHS North Durham CCG | C142: =VLOOKUP('STP Weighted population calc'!$B142,CCGPopulation[],11,FALSE) -> 268183.9933 | E142: E54000049
A143: NHS North Tyneside CCG | B143: NHS North Tyneside CCG | C143: =VLOOKUP('STP Weighted population calc'!$B143,CCGPopulation[],11,FALSE) -> 244692.6853 | E143: E54000049 | G143: Now Northumberland, Tyne and Wear and North Durham
A144: NHS Northumberland CCG | B144: NHS Northumberland CCG | C144: =VLOOKUP('STP Weighted population calc'!$B144,CCGPopulation[],11,FALSE) -> 358424.252 | E144: Now Durh+E144
A145: NHS South Tyneside CCG | B145: NHS South Tyneside CCG | C145: =VLOOKUP('STP Weighted population calc'!$B145,CCGPopulation[],11,FALSE) -> 186481.3866 | E145: E54000049
A146: NHS Sunderland CCG | B146: NHS Sunderland CCG | C146: =VLOOKUP('STP Weighted population calc'!$B146,CCGPopulation[],11,FALSE) -> 314651.6389 | E146: E54000049
A147: NHS Newcastle and Gateshead CCG | B147: NHS Newcastle and Gateshead CCG | C147: =VLOOKUP('STP Weighted population calc'!$B147,CCGPopulation[],11,FALSE) -> 560217.2291 | E147: E54000049
A148: NHS Cumbria CCG | B148: NHS Cumbria CCG | C148: =VLOOKUP('STP Weighted population calc'!$B148,CCGPopulation[],11,FALSE) -> 577181.7962 | E148: E54000049 | G148: Now North Cumbria STP
A149: NHS Dudley CCG | B149: NHS Dudley CCG | C149: =VLOOKUP('STP Weighted population calc'!$B149,CCGPopulation[],11,FALSE) -> 344554.8958 | D149: =SUM(C149:C152) -> 1493614.935 | E149: E54000016 | F149: The Black Country and West Birmingham STP
A150: NHS Sandwell and West Birmingham CCG | B150: NHS Sandwell and West Birmingham CCG | C150: =VLOOKUP('STP Weighted population calc'!$B150,CCGPopulation[],11,FALSE) -> 574345.3918 | E150: E54000016
A151: NHS Walsall CCG | B151: NHS Walsall CCG | C151: =VLOOKUP('STP Weighted population calc'!$B151,CCGPopulation[],11,FALSE) -> 289908.935 | E151: E54000016
A152: NHS Wolverhampton CCG | B152: NHS Wolverhampton CCG | C152: =VLOOKUP('STP Weighted population calc'!$B152,CCGPopulation[],11,FALSE) -> 284805.7122 | E152: E54000016
A153: NHS Birmingham and Solihull CCG | B153: NHS Solihull CCG | C153: =VLOOKUP('STP Weighted population calc'!$B153,CCGPopulation[],11,FALSE) -> 250012.2685 | D153: =SUM(C153:C155) -> 1295062.085 | E153: E54000017 | F153: Birmingham and Solihull
A154: NHS Birmingham and Solihull CCG | B154: NHS Birmingham CrossCity CCG | C154: =VLOOKUP('STP Weighted population calc'!$B154,CCGPopulation[],11,FALSE) -> 751114.5386 | E154: E54000017
A155: NHS Birmingham and Solihull CCG | B155: NHS Birmingham South and Central CCG | C155: =VLOOKUP('STP Weighted population calc'!$B155,CCGPopulation[],11,FALSE) -> 293935.2784 | E155: E54000017
A156: NHS Coventry and Rugby CCG | B156: NHS Coventry and Rugby CCG | C156: =VLOOKUP('STP Weighted population calc'!$B156,CCGPopulation[],11,FALSE) -> 495038.1304 | D156: =SUM(C156:C158) -> 961446.984 | E156: E54000018 | F156: Coventry and Warwickshire
A157: NHS South Warwickshire CCG | B157: NHS South Warwickshire CCG | C157: =VLOOKUP('STP Weighted population calc'!$B157,CCGPopulation[],11,FALSE) -> 272361.9013 | E157: E54000018
A158: NHS Warwickshire North CCG | B158: NHS Warwickshire North CCG | C158: =VLOOKUP('STP Weighted population calc'!$B158,CCGPopulation[],11,FALSE) -> 194046.9522 | E158: E54000018
A159: NHS Herefordshire CCG | B159: NHS Herefordshire CCG | C159: =VLOOKUP('STP Weighted population calc'!$B159,CCGPopulation[],11,FALSE) -> 186174.0648 | D159: =SUM(C159:C162) -> 754655.0668 | E159: E54000019 | F159: Herefordshire and Worcestershire
A160: NHS Redditch and Bromsgrove CCG | B160: NHS Redditch and Bromsgrove CCG | C160: =VLOOKUP('STP Weighted population calc'!$B160,CCGPopulation[],11,FALSE) -> 165824.8781 | E160: E54000019
A161: NHS South Worcestershire CCG | B161: NHS South Worcestershire CCG | C161: =VLOOKUP('STP Weighted population calc'!$B161,CCGPopulation[],11,FALSE) -> 287780.3079 | E161: E54000019
A162: NHS Wyre Forest CCG | B162: NHS Wyre Forest CCG | C162: =VLOOKUP('STP Weighted population calc'!$B162,CCGPopulation[],11,FALSE) -> 114875.816 | E162: E54000019
A163: NHS Corby CCG | B163: NHS Corby CCG | C163: =VLOOKUP('STP Weighted population calc'!$B163,CCGPopulation[],11,FALSE) -> 81918.83678 | D163: =SUM(C163:C164) -> 732049.5106 | E163: E54000020 | F163: Northamptonshire
A164: NHS Nene CCG | B164: NHS Nene CCG | C164: =VLOOKUP('STP Weighted population calc'!$B164,CCGPopulation[],11,FALSE) -> 650130.6738 | E164: E54000020
A165: NHS Cambridgeshire and Peterborough CCG | B165: NHS Cambridgeshire and Peterborough CCG | C165: =VLOOKUP('STP Weighted population calc'!$B165,CCGPopulation[],11,FALSE) -> 836822.2254 | D165: =VLOOKUP('STP Weighted population calc'!$B165,CCGPopulation[],11,FALSE) -> 836822.2254 | E165: E54000021 | F165: Cambridgeshire and Peterborough
A166: NHS Great Yarmouth and Waveney CCG | B166: NHS Great Yarmouth and Waveney CCG | C166: =VLOOKUP('STP Weighted population calc'!$B166,CCGPopulation[],11,FALSE) -> 261646.2221 | D166: =SUM(C166:C170) -> 1062780.448 | E166: E54000022 | F166: Norfolk and Waveney
A167: NHS North Norfolk CCG | B167: NHS North Norfolk CCG | C167: =VLOOKUP('STP Weighted population calc'!$B167,CCGPopulation[],11,FALSE) -> 183170.1205 | E167: E54000022
A168: NHS West Norfolk CCG | B168: NHS West Norfolk CCG | C168: =VLOOKUP('STP Weighted population calc'!$B168,CCGPopulation[],11,FALSE) -> 195842.7014 | E168: E54000022
A169: NHS Norwich CCG | B169: NHS Norwich CCG | C169: =VLOOKUP('STP Weighted population calc'!$B169,CCGPopulation[],11,FALSE) -> 199088.0315 | E169: E54000022
A170: NHS South Norfolk CCG | B170: NHS South Norfolk CCG | C170: =VLOOKUP('STP Weighted population calc'!$B170,CCGPopulation[],11,FALSE) -> 223033.3724 | E170: E54000022
A171: NHS Ipswich and East Suffolk CCG | B171: NHS Ipswich and East Suffolk CCG | C171: =VLOOKUP('STP Weighted population calc'!$B171,CCGPopulation[],11,FALSE) -> 392146.3712 | D171: =SUM(C171:C173) -> 1016634.185 | E171: E54000023 | F171: Suffolk and North East Essex
A172: NHS North East Essex CCG | B172: NHS North East Essex CCG | C172: =VLOOKUP('STP Weighted population calc'!$B172,CCGPopulation[],11,FALSE) -> 377507.0211 | E172: E54000023
A173: NHS West Suffolk CCG | B173: NHS West Suffolk CCG | C173: =VLOOKUP('STP Weighted population calc'!$B173,CCGPopulation[],11,FALSE) -> 246980.793 | E173: E54000023
A174: NHS Bedfordshire CCG | B174: NHS Bedfordshire CCG | C174: =VLOOKUP('STP Weighted population calc'!$B174,CCGPopulation[],11,FALSE) -> 459634.0871 | D174: =SUM(C174:C176) -> 947194.3605 | E174: E54000024 | F174: Milton Keynes, Bedfordshire and Luton
A175: NHS Luton CCG | B175: NHS Luton CCG | C175: =VLOOKUP('STP Weighted population calc'!$B175,CCGPopulation[],11,FALSE) -> 228839.4239 | E175: E54000024
A176: NHS Milton Keynes CCG | B176: NHS Milton Keynes CCG | C176: =VLOOKUP('STP Weighted population calc'!$B176,CCGPopulation[],11,FALSE) -> 258720.8496 | E176: E54000024
A177: NHS East and North Hertfordshire CCG | B177: NHS East and North Hertfordshire CCG | C177: =VLOOKUP('STP Weighted population calc'!$B177,CCGPopulation[],11,FALSE) -> 592182.8447 | D177: =SUM(C177:C179) -> 1536665.252 | E177: E54000025 | F177: Hertfordshire and West Essex
A178: NHS Herts Valleys CCG | B178: NHS Herts Valleys CCG | C178: =VLOOKUP('STP Weighted population calc'!$B178,CCGPopulation[],11,FALSE) -> 630372.8643 | E178: E54000025
A179: NHS West Essex CCG | B179: NHS West Essex CCG | C179: =VLOOKUP('STP Weighted population calc'!$B179,CCGPopulation[],11,FALSE) -> 314109.5432 | E179: E54000025
A180: NHS Basildon and Brentwood CCG | B180: NHS Basildon and Brentwood CCG | C180: =VLOOKUP('STP Weighted population calc'!$B180,CCGPopulation[],11,FALSE) -> 277159.0901 | D180: =SUM(C180:C184) -> 1203116.485 | E180: E54000026 | F180: Mid and South Essex
A181: NHS Castle Point and Rochford CCG | B181: NHS Castle Point and Rochford CCG | C181: =VLOOKUP('STP Weighted population calc'!$B181,CCGPopulation[],11,FALSE) -> 186100.9206 | E181: E54000026
A182: NHS Mid Essex CCG | B182: NHS Mid Essex CCG | C182: =VLOOKUP('STP Weighted population calc'!$B182,CCGPopulation[],11,FALSE) -> 372052.3055 | E182: E54000026
A183: NHS Southend CCG | B183: NHS Southend CCG | C183: =VLOOKUP('STP Weighted population calc'!$B183,CCGPopulation[],11,FALSE) -> 199440.3795 | E183: E54000026
A184: NHS Thurrock CCG | B184: NHS Thurrock CCG | C184: =VLOOKUP('STP Weighted population calc'!$B184,CCGPopulation[],11,FALSE) -> 168363.7897 | E184: E54000026
A185: NHS Brent CCG | B185: NHS Brent CCG | C185: =VLOOKUP('STP Weighted population calc'!$B185,CCGPopulation[],11,FALSE) -> 332473.3155 | D185: =SUM(C185:C192) -> 2172133.404 | E185: E54000027 | F185: North West London
A186: NHS Central London (Westminster) CCG | B186: NHS Central London (Westminster) CCG | C186: =VLOOKUP('STP Weighted population calc'!$B186,CCGPopulation[],11,FALSE) -> 185362.271 | E186: E54000027
A187: NHS Ealing CCG | B187: NHS Ealing CCG | C187: =VLOOKUP('STP Weighted population calc'!$B187,CCGPopulation[],11,FALSE) -> 405523.3807 | E187: E54000027
A188: NHS Hammersmith and Fulham CCG | B188: NHS Hammersmith and Fulham CCG | C188: =VLOOKUP('STP Weighted population calc'!$B188,CCGPopulation[],11,FALSE) -> 197504.5876 | E188: E54000027
A189: NHS Harrow CCG | B189: NHS Harrow CCG | C189: =VLOOKUP('STP Weighted population calc'!$B189,CCGPopulation[],11,FALSE) -> 241891.5867 | E189: E54000027
A190: NHS Hillingdon CCG | B190: NHS Hillingdon CCG | C190: =VLOOKUP('STP Weighted population calc'!$B190,CCGPopulation[],11,FALSE) -> 299019.9539 | E190: E54000027
A191: NHS Hounslow CCG | B191: NHS Hounslow CCG | C191: =VLOOKUP('STP Weighted population calc'!$B191,CCGPopulation[],11,FALSE) -> 286608.9524 | E191: E54000027
A192: NHS West London (Kensington and Chelsea, Queen's Park and Paddington) CCG | B192: NHS West London (Kensington and Chelsea, Queen's Park and Paddington) CCG | C192: =VLOOKUP('STP Weighted population calc'!$B192,CCGPopulation[],11,FALSE) -> 223749.3559 | E192: E54000027
A193: NHS Barnet CCG | B193: NHS Barnet CCG | C193: =VLOOKUP('STP Weighted population calc'!$B193,CCGPopulation[],11,FALSE) -> 388769.3882 | D193: =SUM(C193:C197) -> 1523650.943 | E193: E54000028 | F193: North Central London
A194: NHS Camden CCG | B194: NHS Camden CCG | C194: =VLOOKUP('STP Weighted population calc'!$B194,CCGPopulation[],11,FALSE) -> 249049.8379 | E194: E54000028
A195: NHS Enfield CCG | B195: NHS Enfield CCG | C195: =VLOOKUP('STP Weighted population calc'!$B195,CCGPopulation[],11,FALSE) -> 332292.1531 | E195: E54000028
A196: NHS Haringey CCG | B196: NHS Haringey CCG | C196: =VLOOKUP('STP Weighted population calc'!$B196,CCGPopulation[],11,FALSE) -> 293045.4958 | E196: E54000028
A197: NHS Islington CCG | B197: NHS Islington CCG | C197: =VLOOKUP('STP Weighted population calc'!$B197,CCGPopulation[],11,FALSE) -> 260494.0683 | E197: E54000028
A198: NHS Barking and Dagenham CCG | B198: NHS Barking and Dagenham CCG | C198: =VLOOKUP('STP Weighted population calc'!$B198,CCGPopulation[],11,FALSE) -> 219147.1252 | D198: =SUM(C198:C204) -> 2008990.02 | E198: E54000029 | F198: North East London
A199: NHS City and Hackney CCG | B199: NHS City and Hackney CCG | C199: =VLOOKUP('STP Weighted population calc'!$B199,CCGPopulation[],11,FALSE) -> 294523.6572 | E199: E54000029
A200: NHS Havering CCG | B200: NHS Havering CCG | C200: =VLOOKUP('STP Weighted population calc'!$B200,CCGPopulation[],11,FALSE) -> 292569.058 | E200: E54000029
... 11 more rows

Sheet Sources
A1: [1] | B1: Mental Health Five Year Forward View Dashboard Q1 2018/19: https://www.england.nhs.uk/publication/mental-health-five-year-forward-view-dashboard/
A2: [2] | B2: Mental Health Five Year Forward View Dashboard Q1 2018/19: https://www.england.nhs.uk/publication/mental-health-five-year-forward-view-dashboard/
A3: [3] | B3: NHS England overall weighted CCG populations 2018-19: https://www.england.nhs.uk/publication/nhs-england-allocations-2016-17-to-2020-21-overall-weighted-populations-for-core-ccg-allocations/
A4: [4] | B4: ONS Clinical Commissioning Group to STPs (April 2018) Lookup in England: https://data.gov.uk/dataset/00b07fa3-610b-4a1d-8d1b-476a8d0f3387/clinical-commissioning-group-to-stps-april-2018-lookup-in-england

Sheet CCG Weighted Population (hidden)
A1: Clinical Commissioning Group | B1: Total weighted populations 2015 populations | C1: Shares of weighted populations | D1: Column1 | E1: Total weighted populations uplifted by ONS population growth to 2016 | F1: Shares of weighted populations2 | G1: Column3 | H1: Total weighted populations uplifted by ONS population growth to 2017 | I1: Shares of weighted populations4 | J1: Column5 | K1: Total weighted populations uplifted by ONS population growth to 2018-19 | L1: Shares of weighted populations3
A2: NHS Eastern Cheshire CCG | B2: 206514.2021 | C2: 0.003602252915 | E2: 207552.978 | F2: 0.003593501899 | H2: 208533.8259 | I2: 0.003584673769 | K2: 209587.9702 | L2: 0.003577061949
A3: NHS South Cheshire CCG | B3: 187157.0182 | C3: 0.003264603147 | E3: 187841.1198 | F3: 0.003252217468 | H3: 188561.1649 | I3: 0.003241345901 | K3: 189232.0964 | L3: 0.003229645914
A4: NHS Vale Royal CCG | B4: 108463.664 | C4: 0.001891945182 | E4: 108673.9799 | F4: 0.001881544447 | H4: 108908.8199 | I4: 0.00187213076 | K4: 109135.5691 | L4: 0.001862629288
A5: NHS Warrington CCG | B5: 221660.1552 | C5: 0.003866445657 | E5: 223394.0277 | F5: 0.003867768464 | H5: 225105.6869 | I5: 0.003869542256 | K5: 226810.4949 | L5: 0.003871000755
A6: NHS West Cheshire CCG | B6: 274851.2763 | C6: 0.004794265 | E6: 275694.7282 | F6: 0.004773285061 | H6: 276439.8287 | I6: 0.004751970565 | K6: 277241.9081 | L6: 0.004731719475
A7: NHS Wirral CCG | B7: 406847.4206 | C7: 0.007096690161 | E7: 407638.8798 | F7: 0.007057721372 | H7: 408476.6793 | I7: 0.007021669656 | K7: 409345.8729 | L7: 0.006986353007
A8: NHS Darlington CCG | B8: 118631.1778 | C8: 0.00206929839 | E8: 118848.7263 | F8: 0.002057706557 | H8: 119055.482 | I8: 0.002046550777 | K8: 119281.2442 | L8: 0.002035786688
A9: NHS Durham Dales, Easington and Sedgefield CCG | B9: 344276.116 | C9: 0.006005251114 | E9: 345802.3545 | F9: 0.005987104736 | H9: 347347.9714 | I9: 0.00597087382 | K9: 348902.4542 | L9: 0.005954758242
A10: NHS North Durham CCG | B10: 265075.3521 | C10: 0.004623742338 | E10: 266185.1064 | F10: 0.004608638694 | H10: 267186.7454 | I10: 0.00459291107 | K10: 268183.9933 | L10: 0.004577127003
A11: NHS Hartlepool and Stockton-on-Tees CCG | B11: 327333.6164 | C11: 0.005709720986 | E11: 329048.7768 | F11: 0.005697038971 | H11: 330768.0579 | I11: 0.005685866911 | K11: 332472.221 | L11: 0.005674341565
A12: NHS South Tees CCG | B12: 338086.9731 | C12: 0.005897293123 | E12: 338741.8404 | F12: 0.005864861389 | H12: 339333.3587 | I12: 0.0058331035 | K12: 339943.9866 | L12: 0.005801863047
A13: NHS Bolton CCG | B13: 328610.4636 | C13: 0.005731993189 | E13: 330661.0341 | F13: 0.005724953048 | H13: 332690.6312 | I13: 0.005718915737 | K13: 334724.2123 | L13: 0.00571277656
A14: NHS Bury CCG | B14: 209645.7841 | C14: 0.003656877488 | E14: 210830.1212 | F14: 0.003650241245 | H14: 212004.7644 | I14: 0.003644338823 | K14: 213189.5659 | L14: 0.003638530797
A15: NHS Central Manchester CCG | B15: 216181.3605 | C15: 0.003770878361 | E15: 217854.2582 | F15: 0.003771854772 | H15: 219287.783 | I15: 0.00376953312 | K15: 220653.6386 | L15: 0.003765920982
A16: NHS Oldham CCG | B16: 263191.7295 | C16: 0.004590886073 | E16: 264330.2542 | F16: 0.004576524411 | H16: 265487.5941 | I16: 0.004563702845 | K16: 266660.6789 | L16: 0.004551128421
A17: NHS Heywood, Middleton and Rochdale CCG | B17: 259193.5492 | C17: 0.004521145317 | E17: 259851.1204 | F17: 0.004498974207 | H17: 260518.5313 | I17: 0.004478285196 | K17: 261232.8442 | L17: 0.004458490944
A18: NHS Salford CCG | B18: 303645.9155 | C18: 0.005296533471 | E18: 306953.6453 | F18: 0.005314491355 | H18: 310078.5965 | I18: 0.005330217321 | K18: 313157.5738 | L18: 0.005344696264
A19: NHS North Manchester CCG | B19: 239728.1096 | C19: 0.004181607234 | E19: 241781.1503 | F19: 0.004186116871 | H19: 243673.8726 | I19: 0.004188727346 | K19: 245473.9242 | L19: 0.004189531647
A20: NHS South Manchester CCG | B20: 184180.5368 | C20: 0.003212684012 | E20: 185795.6645 | F20: 0.00321680315 | H20: 187322.4127 | I20: 0.003220051884 | K20: 188813.0846 | L20: 0.003222494591
A21: NHS Stockport CCG | B21: 333969.9226 | C21: 0.0058254789 | E21: 335585.4273 | F21: 0.005810212322 | H21: 337229.5593 | I21: 0.005796939417 | K21: 338933.7663 | L21: 0.0057846215
A22: NHS Tameside and Glossop CCG | B22: 276265.8778 | C22: 0.004818940069 | E22: 277906.9761 | F22: 0.004811587171 | H22: 279542.2788 | I22: 0.004805301345 | K22: 281192.8885 | L22: 0.004799151311
A23: NHS Trafford CCG | B23: 238756.154 | C23: 0.004164653291 | E23: 240487.0593 | F23: 0.004163711417 | H23: 242200.8886 | I23: 0.004163406912 | K23: 243955.851 | L23: 0.004163622516
A24: NHS Wigan Borough CCG | B24: 362664.64 | C24: 0.006326004424 | E24: 364737.9358 | F24: 0.006314948973 | H24: 366832.8449 | I24: 0.006305816675 | K24: 368954.5506 | L24: 0.006296989673
A25: NHS Blackburn with Darwen CCG | B25: 182481.7593 | C25: 0.003183052024 | E25: 182847.496 | F25: 0.00316575956 | H25: 183216.0398 | I25: 0.003149463781 | K25: 183583.4208 | L25: 0.003133239319
A26: NHS Blackpool CCG | B26: 214833.9505 | C26: 0.00374737532 | E26: 214799.8895 | F26: 0.003718972469 | H26: 214835.8244 | I26: 0.003693004437 | K26: 214906.5716 | L26: 0.003667835129
A27: NHS Chorley and South Ribble CCG | B27: 183380.6789 | C27: 0.003198731991 | E27: 184590.124 | F27: 0.00319593083 | H27: 185834.2965 | I27: 0.003194471329 | K27: 187066.5513 | L27: 0.003192686307
A28: NHS East Lancashire CCG | B28: 414816.7367 | C28: 0.007235699933 | E28: 415720.8929 | F28: 0.007197650607 | H28: 416662.7318 | I28: 0.007162387007 | K28: 417665.7976 | L28: 0.007128350118
A29: NHS Greater Preston CCG | B29: 217520.7949 | C29: 0.003794242282 | E29: 218077.9966 | F29: 0.003775728503 | H29: 218549.0567 | I29: 0.003756834496 | K29: 219062.0971 | L29: 0.00373875796
A30: NHS Lancashire North CCG | B30: 165561.8284 | C30: 0.002887915566 | E30: 166030.1706 | F30: 0.002874590089 | H30: 166470.8515 | I30: 0.002861615817 | K30: 166900.6382 | L30: 0.002848512353
A31: NHS West Lancashire CCG | B31: 118095.7552 | C31: 0.002059958946 | E31: 118209.7528 | F31: 0.002046643586 | H31: 118306.9031 | I31: 0.002033682787 | K31: 118401.3534 | L31: 0.002020769492
A32: NHS Fylde and Wyre CCG | B32: 171940.3862 | C32: 0.002999177542 | E32: 172580.7429 | F32: 0.002988004477 | H32: 173212.2328 | I32: 0.002977499427 | K32: 173878.9417 | L32: 0.00296761186
A33: NHS Halton CCG | B33: 151727.3173 | C33: 0.002646598467 | E33: 152087.6817 | F33: 0.002633194563 | H33: 152433.8494 | I33: 0.002620321278 | K33: 152786.8435 | L33: 0.002607630599
A34: NHS Knowsley CCG | B34: 204572.8674 | C34: 0.003568389972 | E34: 204763.9766 | F34: 0.003545214075 | H34: 204978.504 | I34: 0.003523558172 | K34: 205175.3507 | L34: 0.003501751265
A35: NHS South Sefton CCG | B35: 183882.4952 | C35: 0.003207485235 | E35: 183938.084 | F35: 0.00318464163 | H35: 184035.3369 | I35: 0.00316354741 | K35: 184165.9226 | L35: 0.003143180945
A36: NHS Southport and Formby CCG | B36: 142333.5922 | C36: 0.002482742552 | E36: 142602.4887 | F36: 0.002468971146 | H36: 142866.4959 | I36: 0.002455859514 | K36: 143167.991 | L36: 0.002443464539
A37: NHS St Helens CCG | B37: 232685.134 | C37: 0.004058755734 | E37: 233698.2714 | F37: 0.004046172646 | H37: 234715.3795 | I37: 0.004034731824 | K37: 235716.7319 | L37: 0.004023004525
A38: NHS Liverpool CCG | B38: 595687.1281 | C38: 0.01039064467 | E38: 597069.5329 | F38: 0.01033745948 | H38: 598345.1312 | I38: 0.01028548768 | K38: 599637.6291 | L38: 0.01023408426
A39: NHS Newcastle and Gateshead CCG | B39: 554746.2541 | C39: 0.009676507911 | E39: 556716.2608 | F39: 0.009638796609 | H39: 558449.9034 | I39: 0.009599693053 | K39: 560217.2291 | L39: 0.009561291765
A40: NHS Northumberland CCG | B40: 356398.3021 | C40: 0.006216699913 | E40: 357050.9988 | F40: 0.006181859951 | H40: 357727.7621 | I40: 0.006149301292 | K40: 358424.252 | L40: 0.006117267859
A41: NHS South Tyneside CCG | B41: 184891.9062 | C41: 0.003225092516 | E41: 185403.6913 | F41: 0.003210016658 | H41: 185937.5012 | I41: 0.003196245406 | K41: 186481.3866 | L41: 0.003182699235
A42: NHS Sunderland CCG | B42: 313503.6221 | C42: 0.005468482675 | E42: 313897.9945 | F42: 0.005434723463 | H42: 314273.2492 | I42: 0.005402322946 | K42: 314651.6389 | L42: 0.005370195645
A43: NHS Cumbria CCG | B43: 576994.3521 | C43: 0.01006458425 | E43: 576964.5305 | F43: 0.009989368287 | H43: 577048.2121 | I43: 0.009919395955 | K43: 577181.7962 | L43: 0.009850827979
A44: NHS North Tyneside CCG | B44: 240221.3771 | C44: 0.00419021136 | E44: 241722.0846 | F44: 0.004185094227 | H44: 243203.3689 | I44: 0.004180639438 | K44: 244692.6853 | L44: 0.004176198152
A45: NHS East Riding of Yorkshire CCG | B45: 306121.5007 | C45: 0.005339715412 | E45: 307624.3688 | F45: 0.005326104034 | H45: 309100.2275 | I45: 0.005313399265 | K45: 310609.7835 | L45: 0.005301212834
A46: NHS Hambleton, Richmondshire and Whitby CCG | B46: 142708.2105 | C46: 0.002489277065 | E46: 142963.0381 | F46: 0.002475213576 | H46: 143228.7843 | I46: 0.002462087212 | K46: 143479.6395 | L46: 0.002448783479
A47: NHS Harrogate and Rural District CCG | B47: 151489.8028 | C47: 0.002642455473 | E47: 151922.8719 | F47: 0.002630341101 | H47: 152391.7057 | I47: 0.002619596833 | K47: 152896.1901 | L47: 0.002609496829
A48: NHS Hull CCG | B48: 305823.4136 | C48: 0.005334515842 | E48: 306740.0557 | F48: 0.005310793337 | H48: 307598.9328 | I48: 0.005287592173 | K48: 308434.8764 | L48: 0.005264093445
A49: NHS North East Lincolnshire CCG | B49: 177608.2625 | C49: 0.003098043014 | E49: 177853.7134 | F49: 0.0030792989 | H49: 178100.0834 | I49: 0.003061521048 | K49: 178366.2126 | L49: 0.003044196627
A50: NHS North Lincolnshire CCG | B50: 175177.8417 | C50: 0.003055648882 | E50: 176072.6937 | F50: 0.003048462929 | H50: 176959.3444 | I50: 0.003041911869 | K50: 177864.7151 | L50: 0.003035637513
A51: NHS Scarborough and Ryedale CCG | B51: 127733.7311 | C51: 0.002228075359 | E51: 127844.5409 | F51: 0.00221345704 | H51: 127968.83 | I51: 0.002199770258 | K51: 128160.9966 | L51: 0.002187338443
A52: NHS Vale of York CCG | B52: 313847.4565 | C52: 0.00547448022 | E52: 315934.0592 | F52: 0.005469975197 | H52: 317947.7438 | I52: 0.005465487108 | K52: 319972.0568 | L52: 0.005460999827
A53: NHS Barnsley CCG | B53: 281338.6986 | C53: 0.004907425912 | E53: 283193.529 | F53: 0.004903116757 | H53: 285029.6786 | I53: 0.004899629151 | K53: 286855.0411 | L53: 0.004895787918
A54: NHS Bassetlaw CCG | B54: 122700.1716 | C54: 0.002140274355 | E54: 123206.8591 | F54: 0.002133161791 | H54: 123713.8037 | I54: 0.00212662682 | K54: 124228.6271 | L54: 0.002120224241
A55: NHS Doncaster CCG | B55: 338772.5451 | C55: 0.005909251642 | E55: 339600.2669 | F55: 0.005879723894 | H55: 340396.3366 | I55: 0.005851375974 | K55: 341260.6138 | L55: 0.005824334074
A56: NHS Rotherham CCG | B56: 271908.8536 | C56: 0.004742939954 | E56: 272955.4509 | F56: 0.004725858143 | H56: 273987.393 | I56: 0.004709813463 | K56: 275030.364 | L56: 0.004693974798
A57: NHS Sheffield CCG | B57: 566299.5175 | C57: 0.00987803292 | E57: 569753.4016 | F57: 0.009864517245 | H57: 573027.0245 | I57: 0.009850272178 | K57: 576247.9896 | L57: 0.009834890595
A58: NHS Airedale, Wharfedale and Craven CCG | B58: 166280.6449 | C58: 0.002900453971 | E58: 167289.8715 | F58: 0.002896400123 | H58: 168264.8066 | I58: 0.00289245371 | K58: 169233.6087 | L58: 0.002888329429
A59: NHS Bradford Districts CCG | B59: 357017.359 | C59: 0.0062274982 | E59: 359410.6289 | F59: 0.006222713786 | H59: 361749.9805 | I59: 0.006218442789 | K59: 364067.7969 | L59: 0.006213586886
A60: NHS Calderdale CCG | B60: 210399.3523 | C60: 0.003670022071 | E60: 211779.921 | F60: 0.003666685758 | H60: 213170.0127 | I60: 0.003664369315 | K60: 214577.5061 | L60: 0.003662218931
A61: NHS Leeds North CCG | B61: 199517.3144 | C61: 0.003480205332 | E61: 201098.1212 | F61: 0.003481744696 | H61: 202632.4569 | I61: 0.003483229878 | K61: 204189.2258 | L61: 0.003484920959
A62: NHS Bradford City CCG | B62: 111815.7287 | C62: 0.001950415663 | E62: 112438.1834 | F62: 0.001946716589 | H62: 113010.9264 | I62: 0.001942645524 | K62: 113620.7809 | L62: 0.001939178912
A63: NHS Greater Huddersfield CCG | B63: 227224.7656 | C63: 0.003963509848 | E63: 228769.6898 | F63: 0.003960840855 | H63: 230285.699 | I63: 0.003958586099 | K63: 231822.3562 | L63: 0.003956538768
A64: NHS Leeds West CCG | B64: 329697.8364 | C64: 0.005750960368 | E64: 331948.6758 | F64: 0.005747246839 | H64: 333940.4269 | I64: 0.00574039959 | K64: 335770.7093 | L64: 0.005730637244
A65: NHS Leeds South and East CCG | B65: 300419.755 | C65: 0.005240259152 | E65: 302714.1473 | F65: 0.005241090123 | H65: 304899.595 | I65: 0.00524119085 | K65: 307057.3824 | L65: 0.005240583597
A66: NHS North Kirklees CCG | B66: 182900.2723 | C66: 0.003190352199 | E66: 184219.4082 | F66: 0.003189512381 | H66: 185463.0966 | I66: 0.003188090444 | K66: 186710.6452 | L66: 0.003186612017
A67: NHS Wakefield CCG | B67: 388289.5553 | C67: 0.006772983009 | E67: 390373.408 | F67: 0.006758792846 | H67: 392475.4871 | I67: 0.006746610903 | K67: 394588.339 | L67: 0.006734484482
A68: NHS Coventry and Rugby CCG | B68: 477865.9244 | C68: 0.008335474758 | E68: 483807.983 | F68: 0.008376487404 | H68: 489425.3804 | I68: 0.008413169016 | K68: 495038.1304 | L68: 0.008448872605
A69: NHS Herefordshire CCG | B69: 183042.5944 | C69: 0.00319283474 | E69: 184106.1357 | F69: 0.00318755122 | H69: 185123.1793 | I69: 0.003182247302 | K69: 186174.0648 | L69: 0.003177454137
A70: NHS Warwickshire North CCG | B70: 191104.6218 | C70: 0.003333461689 | E70: 192057.2786 | F70: 0.003325214614 | H70: 193036.115 | I70: 0.003318269806 | K70: 194046.9522 | L70: 0.003311821611
A71: NHS Redditch and Bromsgrove CCG | B71: 163674.5521 | C71: 0.00285499557 | E71: 164378.4034 | F71: 0.002845991951 | H71: 165094.8911 | I71: 0.002837963208 | K71: 165824.8781 | L71: 0.002830152233
A72: NHS South Warwickshire CCG | B72: 267538.0896 | C72: 0.004666700173 | E72: 269141.4335 | F72: 0.004659823539 | H72: 270758.131 | I72: 0.0046543028 | K72: 272361.9013 | L72: 0.004648431839
A73: NHS South Worcestershire CCG | B73: 283963.3006 | C73: 0.004953207172 | E73: 285238.9702 | F73: 0.004938530831 | H73: 286485.2588 | I73: 0.004924650416 | K73: 287780.3079 | L73: 0.004911579553
A74: NHS Wyre Forest CCG | B74: 114196.7734 | C74: 0.001991948523 | E74: 114410.7382 | F74: 0.001980868735 | H74: 114633.5714 | I74: 0.001970538615 | K74: 114875.816 | L74: 0.00196059874
A75: NHS Birmingham South and Central CCG | B75: 287557.0499 | C75: 0.005015893388 | E75: 289741.9238 | F75: 0.005016493444 | H75: 291874.8285 | I75: 0.005017296531 | K75: 293935.2784 | L75: 0.005016627141
A76: NHS Dudley CCG | B76: 341446.9194 | C76: 0.005955901085 | E76: 342444.5315 | F76: 0.005928968526 | H76: 343489.88 | I76: 0.005904553649 | K76: 344554.8958 | L76: 0.005880557963
A77: NHS Sandwell and West Birmingham CCG | B77: 559745.9461 | C77: 0.009763718161 | E77: 564739.3841 | F77: 0.009777706246 | H77: 569566.3098 | I77: 0.009790782869 | K77: 574345.3918 | L77: 0.00980241874
A78: NHS Solihull CCG | B78: 245874.1583 | C78: 0.004288813526 | E78: 247222.8681 | F78: 0.004280332927 | H78: 248607.3945 | I78: 0.004273534051 | K78: 250012.2685 | L78: 0.004266988088
A79: NHS Walsall CCG | B79: 285328.228 | C79: 0.00497701577 | E79: 286865.2811 | F79: 0.004966688228 | H79: 288384.4539 | I79: 0.004957297372 | K79: 289908.935 | L79: 0.004947909077
A80: NHS Wolverhampton CCG | B80: 281667.1266 | C80: 0.004913154723 | E80: 282701.3837 | F80: 0.004894595919 | H80: 283735.0931 | I80: 0.004877375366 | K80: 284805.7122 | L80: 0.004860811787
A81: NHS Birmingham CrossCity CCG | B81: 734194.2216 | C81: 0.01280664113 | E81: 740016.0783 | F81: 0.01281238751 | H81: 745557.5001 | I81: 0.01281605227 | K81: 751114.5386 | L81: 0.01281935806
A82: NHS Erewash CCG | B82: 100959.1053 | C82: 0.001761042232 | E82: 101512.751 | F82: 0.001757557357 | H82: 102080.7996 | I82: 0.001754757834 | K82: 102677.8445 | L82: 0.00175241456
A83: NHS Hardwick CCG | B83: 114654.9127 | C83: 0.001999939903 | E83: 115121.4591 | F83: 0.001993173917 | H83: 115622.348 | I83: 0.001987535576 | K83: 116127.3588 | L83: 0.001981958964
A84: NHS Mansfield and Ashfield CCG | B84: 208709.197 | C84: 0.003640540483 | E84: 209747.901 | F84: 0.003631504052 | H84: 210775.6085 | I84: 0.003623209767 | K84: 211811.6505 | L84: 0.003615013755
A85: NHS Newark and Sherwood CCG | B85: 135363.6886 | C85: 0.002361165658 | E85: 136197.0008 | F85: 0.0023580687 | H85: 137021.2398 | I85: 0.002355380198 | K85: 137846.0773 | L85: 0.002352634827
A86: NHS North Derbyshire CCG | B86: 298461.2547 | C86: 0.005206096789 | E86: 299544.4151 | F86: 0.005186210455 | H86: 300654.3059 | I86: 0.005168214792 | K86: 301799.9657 | L86: 0.005150854662
A87: NHS Nottingham City CCG | B87: 342200.5221 | C87: 0.00596904627 | E87: 344169.4124 | F87: 0.005958832531 | H87: 345899.8533 | I87: 0.005945980828 | K87: 347616.5696 | L87: 0.005932811901
A88: NHS Nottingham North and East CCG | B88: 151683.3205 | C88: 0.002645831025 | E88: 152619.2089 | F88: 0.002642397244 | H88: 153557.2855 | I88: 0.002639633023 | K88: 154497.9458 | L88: 0.002636834178
A89: NHS Nottingham West CCG | B89: 94374.5972 | C89: 0.001646187837 | E89: 95055.5197 | F89: 0.001645759044 | H89: 95709.65789 | I89: 0.001645238601 | K89: 96359.56439 | L89: 0.001644579748
A90: NHS Rushcliffe CCG | B90: 113658.5599 | C90: 0.001982560397 | E90: 114494.4049 | F90: 0.001982317312 | H90: 115330.3457 | I90: 0.001982516089 | K90: 116148.0962 | L90: 0.001982312892
A91: NHS Southern Derbyshire CCG | B91: 541445.7287 | C91: 0.009444505191 | E91: 545456.4562 | F91: 0.009443848168 | H91: 549379.5455 | I91: 0.009443774588 | K91: 553264.3298 | L91: 0.009442625835
A92: NHS Cambridgeshire and Peterborough CCG | B92: 813404.8858 | C92: 0.0141883226 | E92: 821418.5485 | F92: 0.01422176228 | H92: 829120.703 | I92: 0.01425249464 | K92: 836822.2254 | L92: 0.01428214099
A93: NHS Ipswich and East Suffolk CCG | B93: 385763.2292 | C93: 0.006728915989 | E93: 387830.0446 | F93: 0.006714757915 | H93: 389955.5184 | I93: 0.006703292915 | K93: 392146.3712 | L93: 0.006692807138
A94: NHS Great Yarmouth and Waveney CCG | B94: 258581.8621 | C94: 0.004510475583 | E94: 259549.7166 | F94: 0.004493755804 | H94: 260559.5869 | I94: 0.004478990938 | K94: 261646.2221 | L94: 0.004465546111
A95: NHS North Norfolk CCG | B95: 180445.8539 | C95: 0.003147539473 | E95: 181297.5142 | F95: 0.0031389237 | H95: 182213.1805 | I95: 0.003132224739 | K95: 183170.1205 | L95: 0.003126185475
A96: NHS Norwich CCG | B96: 194770.4433 | C96: 0.003397405068 | E96: 196298.82 | F96: 0.003398651222 | H96: 197706.9738 | I96: 0.00339856136 | K96: 199088.0315 | L96: 0.00339785829
A97: NHS South Norfolk CCG | B97: 216642.6234 | C97: 0.003778924227 | E97: 218767.2223 | F97: 0.003787661524 | H97: 220898.0929 | I97: 0.003797214172 | K97: 223033.3724 | L97: 0.003806536172
A98: NHS West Norfolk CCG | B98: 192085.9984 | C98: 0.003350579961 | E98: 193335.4797 | F98: 0.003347344953 | H98: 194584.6456 | I98: 0.003344888877 | K98: 195842.7014 | L98: 0.003342469869
A99: NHS West Suffolk CCG | B99: 241523.4647 | C99: 0.004212923836 | E99: 243365.9298 | F99: 0.004213555205 | H99: 245182.3268 | I99: 0.00421465751 | K99: 246980.793 | L99: 0.004215249548
A100: NHS Mid Essex CCG | B100: 364058.2422 | C100: 0.006350313201 | E100: 366662.0726 | F100: 0.006348262823 | H100: 369325.1341 | I100: 0.006348658855 | K100: 372052.3055 | L100: 0.006349859411
A101: NHS North East Essex CCG | B101: 367632.9431 | C101: 0.006412667153 | E101: 370935.0832 | F101: 0.006422244281 | H101: 374203.0889 | I101: 0.006432510366 | K101: 377507.0211 | L101: 0.006442955669
A102: NHS Thurrock CCG | B102: 163129.5088 | C102: 0.002845488312 | E102: 164856.3182 | F102: 0.002854266406 | H102: 166598.6422 | I102: 0.002863812525 | K102: 168363.7897 | L102: 0.002873484128
A103: NHS West Essex CCG | B103: 304281.4354 | C103: 0.005307618925 | E103: 307537.6892 | F103: 0.005324603293 | H103: 310788.9153 | I103: 0.005342427626 | K103: 314109.5432 | L103: 0.005360943636
A104: NHS Basildon and Brentwood CCG | B104: 271421.4151 | C104: 0.004734437504 | E104: 273289.4579 | F104: 0.004731641028 | H104: 275180.3129 | I104: 0.004730319625 | K104: 277159.0901 | L104: 0.004730306009
A105: NHS Castle Point and Rochford CCG | B105: 183546.7849 | C105: 0.003201629398 | E105: 184360.8554 | F105: 0.003191961351 | H105: 185192.2485 | I105: 0.003183434593 | K105: 186100.9206 | L105: 0.003176205777
A106: NHS Southend CCG | B106: 194946.9393 | C106: 0.00340048371 | E106: 196412.3477 | F106: 0.003400616802 | H106: 197918.261 | I106: 0.003402193363 | K106: 199440.3795 | L106: 0.003403871854
A107: NHS Corby CCG | B107: 78316.58991 | C107: 0.001366086019 | E107: 79534.07525 | F107: 0.001377026016 | H107: 80735.05263 | I107: 0.001387826767 | K107: 81918.83678 | L107: 0.001398118192
A108: NHS Milton Keynes CCG | B108: 248442.4967 | C108: 0.004333613372 | E108: 251927.3253 | F108: 0.004361784304 | H108: 255343.9351 | I108: 0.00438933445 | K108: 258720.8496 | L108: 0.004415618442
A109: NHS Nene CCG | B109: 634577.3264 | C109: 0.01106901123 | E109: 639803.807 | F109: 0.01107734622 | H109: 644939.5219 | I109: 0.01108644018 | K109: 650130.6738 | L109: 0.01109585485
A110: NHS Bedfordshire CCG | B110: 443691.5329 | C110: 0.007739366595 | E110: 449051.1511 | F110: 0.007774719399 | H110: 454322.5966 | I110: 0.007809755983 | K110: 459634.0871 | L110: 0.007844627732
A111: NHS East and North Hertfordshire CCG | B111: 575146.5878 | C111: 0.01003235347 | E111: 580822.2528 | F111: 0.01005615958 | H111: 586460.4061 | I111: 0.01008119055 | K111: 592182.8447 | L111: 0.0101068526
A112: NHS Herts Valleys CCG | B112: 610096.6458 | C112: 0.01064199168 | E112: 616812.7653 | F112: 0.01067928712 | H112: 623520.2837 | I112: 0.01071824581 | K112: 630372.8643 | L112: 0.01075864605
A113: NHS Luton CCG | B113: 220651.6589 | C113: 0.003848854332 | E113: 223502.7987 | F113: 0.003869651687 | H113: 226169.1657 | I113: 0.00388782334 | K113: 228839.4239 | L113: 0.003905628719
A114: NHS Lincolnshire East CCG | B114: 273409.8942 | C114: 0.004769122791 | E114: 275372.8223 | F114: 0.004767711692 | H114: 277294.9648 | I114: 0.004766670261 | K114: 279199.93 | L114: 0.00476513726
A115: NHS East Leicestershire and Rutland CCG | B115: 297042.1303 | C115: 0.005181342826 | E115: 298603.7635 | F115: 0.005169924332 | H115: 300211.2589 | I115: 0.005160598863 | K115: 301905.1274 | L115: 0.00515264947
A116: NHS Leicester City CCG | B116: 352192.7291 | C116: 0.00614334158 | E116: 354542.0295 | F116: 0.006138420507 | H116: 356692.2328 | I116: 0.006131500656 | K116: 358785.9235 | L116: 0.006123440547
A117: NHS Lincolnshire West CCG | B117: 224825.9752 | C117: 0.003921667449 | E117: 226138.5992 | F117: 0.003915287044 | H117: 227415.4609 | I117: 0.003909247019 | K117: 228718.626 | L117: 0.003903567047
A118: NHS South West Lincolnshire CCG | B118: 125710.335 | C118: 0.00219278101 | E118: 126736.7078 | F118: 0.002194276394 | H118: 127761.4151 | I118: 0.002196204819 | K118: 128708.3516 | L118: 0.002196680214
A119: NHS West Leicestershire CCG | B119: 339602.1158 | C119: 0.005923721946 | E119: 342207.1538 | F119: 0.00592485865 | H119: 344622.029 | I119: 0.005924015167 | K119: 347007.4572 | L119: 0.00592241611
A120: NHS South Lincolnshire CCG | B120: 161431.5806 | C120: 0.00281587114 | E120: 162871.7549 | F120: 0.00281990635 | H120: 164291.6892 | I120: 0.002824156254 | K120: 165785.3609 | L120: 0.002829477788
A121: NHS Cannock Chase CCG | B121: 136020.6691 | C121: 0.002372625449 | E121: 136414.9335 | F121: 0.002361841913 | H121: 136866.3862 | I121: 0.002352718281 | K121: 137308.9931 | L121: 0.002343468349
A122: NHS East Staffordshire CCG | B122: 130892.8215 | C122: 0.002283179766 | E122: 131780.0758 | F122: 0.002281595559 | H122: 132684.1169 | I122: 0.002280825528 | K122: 133571.1446 | L122: 0.002279674059
A123: NHS North Staffordshire CCG | B123: 223151.4888 | C123: 0.003892459174 | E123: 223670.1937 | F123: 0.003872549908 | H123: 224151.0157 | I123: 0.003853131561 | K123: 224641.1107 | L123: 0.003833975626
A124: NHS Shropshire CCG | B124: 314276.2466 | C124: 0.005481959659 | E124: 315632.9961 | F124: 0.005464762693 | H124: 316996.4257 | I124: 0.005449134053 | K124: 318436.6466 | L124: 0.005434794805
A125: NHS South East Staffs and Seisdon Peninsular CCG | B125: 209098.5019 | C125: 0.003647331177 | E125: 210023.2066 | F125: 0.0036362706 | H125: 210926.6661 | I125: 0.003625806431 | K125: 211839.8199 | L125: 0.003615494526
A126: NHS Stafford and Surrounds CCG | B126: 141418.7688 | C126: 0.002466785174 | E126: 141993.3209 | F126: 0.002458424221 | H126: 142518.1402 | I126: 0.002449871318 | K126: 143066.5718 | L126: 0.002441733606
A127: NHS Stoke On Trent CCG | B127: 311128.4714 | C127: 0.005427052626 | E127: 312211.7344 | F127: 0.005405528128 | H127: 313238.339 | I127: 0.005384532952 | K127: 314291.9719 | L127: 0.005364057166
A128: NHS Telford and Wrekin CCG | B128: 173371.6875 | C128: 0.00302414391 | E128: 174116.7163 | F128: 0.003014597799 | H128: 174842.5804 | I128: 0.003005524925 | K128: 175569.7404 | L128: 0.002996468916
A129: NHS Barking and Dagenham CCG | B129: 206859.4169 | C129: 0.003608274539 | E129: 211023.5789 | F129: 0.003653590707 | H129: 215078.746 | I129: 0.003697180232 | K129: 219147.1252 | L129: 0.003740209145
A130: NHS Barnet CCG | B130: 370855.7014 | C130: 0.006468882127 | E130: 377003.0407 | F130: 0.00652730284 | H130: 382905.45 | I130: 0.006582103007 | K130: 388769.3882 | L130: 0.006635171781
A131: NHS Camden CCG | B131: 239421.7505 | C131: 0.004176263374 | E131: 242954.5276 | F131: 0.004206432328 | H131: 246042.1362 | I131: 0.00422943754 | K131: 249049.8379 | L131: 0.004250562176
A132: NHS City and Hackney CCG | B132: 282669.4108 | C132: 0.004930637691 | E132: 286725.8772 | F132: 0.004964274636 | H132: 290609.7515 | I132: 0.004995549996 | K132: 294523.6572 | L132: 0.00502666907
A133: NHS Enfield CCG | B133: 318248.4236 | C133: 0.005551246837 | E133: 323000.3798 | F133: 0.005592319076 | H133: 327643.2788 | I133: 0.005632152299 | K133: 332292.1531 | L133: 0.005671268326
A134: NHS Haringey CCG | B134: 281770.0695 | C134: 0.00491495037 | E134: 285714.976 | F134: 0.004946772235 | H134: 289373.6726 | I134: 0.004974301934 | K134: 293045.4958 | L134: 0.005001441121
A135: NHS Havering CCG | B135: 282898.4645 | C135: 0.004934633103 | E135: 286052.9826 | F135: 0.004952624367 | H135: 289276.4908 | I135: 0.004972631389 | K135: 292569.058 | L135: 0.004993309701
A136: NHS Islington CCG | B136: 248000.4104 | C136: 0.004325902005 | E136: 252535.7562 | F136: 0.004372318472 | H136: 256580.9796 | I136: 0.00441059911 | K136: 260494.0683 | L136: 0.00444588217
A137: NHS Newham CCG | B137: 322149.6796 | C137: 0.005619296931 | E137: 327694.669 | F137: 0.005673594408 | H137: 332743.1115 | I137: 0.005719817869 | K137: 337744.7668 | L137: 0.00576432871
A138: NHS Redbridge CCG | B138: 273006.1564 | C138: 0.004762080343 | E138: 278058.1604 | F138: 0.004814204726 | H138: 283024.4172 | I138: 0.004865158926 | K138: 287969.3088 | L138: 0.004914805254
A139: NHS Tower Hamlets CCG | B139: 269388.0345 | C139: 0.004698968992 | E139: 275594.5141 | F139: 0.004771549988 | H139: 281349.9613 | I139: 0.00483637521 | K139: 286949.323 | L139: 0.004897397038
A140: NHS Waltham Forest CCG | B140: 279403.0417 | C140: 0.00487366201 | E140: 283057.8152 | F140: 0.004900767054 | H140: 286542.6997 | I140: 0.004925637819 | K140: 290086.7806 | L140: 0.004950944388
A141: NHS Brent CCG | B141: 323620.4941 | C141: 0.005644952532 | E141: 326707.0619 | F141: 0.005656495313 | H141: 329553.1657 | I141: 0.005664983047 | K141: 332473.3155 | L141: 0.005674360246
A142: NHS Ealing CCG | B142: 392939.325 | C142: 0.00685408952 | E142: 397317.7756 | F142: 0.006879025274 | H142: 401411.1731 | I142: 0.006900214372 | K142: 405523.3807 | L142: 0.006921114095
A143: NHS Hounslow CCG | B143: 273830.0644 | C143: 0.004776451873 | E143: 278312.8719 | F143: 0.004818614714 | H143: 282506.1055 | I143: 0.004856249204 | K143: 286608.9524 | L143: 0.004891587895
A144: NHS Hammersmith and Fulham CCG | B144: 195428.1951 | C144: 0.003408878314 | E144: 196111.6763 | F144: 0.00339541108 | H144: 196754.4969 | I144: 0.003382188385 | K144: 197504.5876 | L144: 0.003370833471
A145: NHS Harrow CCG | B145: 233437.9867 | C145: 0.004071887837 | E145: 236299.5647 | F145: 0.004091210557 | H145: 239068.1341 | I145: 0.004109555203 | K145: 241891.5867 | L145: 0.004128391481
A146: NHS Hillingdon CCG | B146: 285748.9629 | C146: 0.004984354702 | E146: 290333.0595 | F146: 0.005026728168 | H146: 294703.7095 | I146: 0.005065924688 | K146: 299019.9539 | L146: 0.005103407882
A147: NHS West London (Kensington and Chelsea, Queen's Park and Paddington) CCG | B147: 220599.7422 | C147: 0.003847948742 | E147: 221752.7996 | F147: 0.003839352796 | H147: 222696.7934 | I147: 0.003828133638 | K147: 223749.3559 | L147: 0.003818755944
A148: NHS Central London (Westminster) CCG | B148: 178605.4627 | C148: 0.003115437301 | E148: 181110.2438 | F148: 0.003135681364 | H148: 183260.3463 | I148: 0.003150225406 | K148: 185362.271 | L148: 0.003163599159
A149: NHS Bexley CCG | B149: 245278.1252 | C149: 0.004278416845 | E149: 247724.5177 | F149: 0.00428901832 | H149: 250161.8099 | I149: 0.004300254282 | K149: 252658.0542 | L149: 0.004312144018
A150: NHS Bromley CCG | B150: 347065.9926 | C150: 0.006053915278 | E150: 350975.3635 | F150: 0.00607666846 | H150: 354914.8389 | I150: 0.006100947449 | K150: 358936.9093 | L150: 0.006126017438
A151: NHS Croydon CCG | B151: 392503.6999 | C151: 0.006846490857 | E151: 397070.8718 | F151: 0.006874750464 | H151: 401575.4726 | I151: 0.006903038663 | K151: 406112.5842 | L151: 0.006931170099
A152: NHS Greenwich CCG | B152: 296203.2702 | C152: 0.005166710484 | E152: 299808.8173 | F152: 0.005190788225 | H152: 303289.0559 | I152: 0.005213505858 | K152: 306807.9747 | L152: 0.005236326928
A153: NHS Kingston CCG | B153: 175524.6754 | C153: 0.003061698744 | E153: 178507.5312 | F153: 0.00309061888 | H153: 181289.3797 | I153: 0.003116344705 | K153: 184012.5395 | L153: 0.003140563137
A154: NHS Lambeth CCG | B154: 370637.5447 | C154: 0.006465076792 | E154: 375061.1801 | F154: 0.006493682123 | H154: 379168.8833 | I154: 0.006517871833 | K154: 383249.0229 | L154: 0.006540955073
A155: NHS Lewisham CCG | B155: 318821.7906 | C155: 0.005561248149 | E155: 323540.936 | F155: 0.005601678083 | H155: 328110.499 | I155: 0.005640183764 | K155: 332668.8871 | L155: 0.005677698088
A156: NHS Richmond CCG | B156: 177013.61 | C156: 0.003087670416 | E156: 179402.401 | F156: 0.003106112352 | H156: 181707.0923 | I156: 0.003123525137 | K156: 183968.5476 | L156: 0.003139812322
A157: NHS Southwark CCG | B157: 309071.2511 | C157: 0.005391168275 | E157: 313611.4578 | F157: 0.005429762464 | H157: 317823.638 | I157: 0.005463353743 | K157: 321982.2662 | L157: 0.005495308303
A158: NHS Merton CCG | B158: 191812.5462 | C158: 0.003345810102 | E158: 194459.3189 | F158: 0.003366802725 | H158: 196979.8379 | I158: 0.003386061973 | K158: 199525.5562 | L158: 0.003405325574
A159: NHS Sutton CCG | B159: 192318.8012 | C159: 0.003354640771 | E159: 195021.2168 | F159: 0.003376531234 | H159: 197727.9183 | I159: 0.003398921393 | K159: 200461.1392 | L159: 0.003421293277
A160: NHS Wandsworth CCG | B160: 315172.0327 | C160: 0.005497584968 | E160: 318504.0074 | F160: 0.005514470408 | H160: 321631.083 | I160: 0.005528803308 | K160: 324747.6027 | L160: 0.005542504618
A161: NHS Bath and North East Somerset CCG | B161: 187397.1037 | C161: 0.003268790989 | E161: 188394.7637 | F161: 0.003261803072 | H161: 189251.6141 | I161: 0.003253214647 | K161: 190109.5805 | L161: 0.003244622035
A162: NHS Gloucestershire CCG | B162: 602628.4913 | C162: 0.01051172373 | E162: 606947.6516 | F162: 0.01050848588 | H162: 611185.5558 | I162: 0.01050621318 | K162: 615442.5766 | L162: 0.01050382911
A163: NHS Swindon CCG | B163: 211457.069 | C163: 0.003688471956 | E163: 214008.8012 | F163: 0.003705275833 | H163: 216508.2719 | I163: 0.003721753628 | K163: 218983.2306 | L163: 0.003737411937
A164: NHS Wiltshire CCG | B164: 480364.5698 | C164: 0.00837905894 | E164: 483216.1335 | F164: 0.008366240322 | H164: 486061.1031 | I164: 0.008355337456 | K164: 488961.8059 | L164: 0.008345167277
A165: NHS Bristol CCG | B165: 448568.5758 | C165: 0.007824437461 | E165: 453321.7036 | F165: 0.007848658297 | H165: 457833.7153 | I165: 0.007870111731 | K165: 462219.3979 | L165: 0.007888751529
A166: NHS North Somerset CCG | B166: 222503.1613 | C166: 0.003881150317 | E166: 224800.6969 | F166: 0.003892123057 | H166: 227121.908 | I166: 0.003904200877 | K166: 229456.9482 | L166: 0.003916168077
A167: NHS Somerset CCG | B167: 578562.7536 | C167: 0.01009194207 | E167: 582231.8428 | F167: 0.01008056475 | H167: 585951.8795 | I167: 0.01007244903 | K167: 589777.7515 | L167: 0.01006580459
A168: NHS South Gloucestershire CCG | B168: 235469.0325 | C168: 0.004107315621 | E168: 237497.5664 | F168: 0.004111952352 | H168: 239480.7369 | I168: 0.0041166478 | K168: 241475.4755 | L168: 0.004121289663
A169: NHS Kernow CCG | B169: 584588.9951 | C169: 0.01019705855 | E169: 589546.7216 | F169: 0.01020721208 | H169: 594425.7697 | I169: 0.01021811428 | K169: 599303.2074 | L169: 0.01022837664
A170: NHS North, East, West Devon CCG | B170: 922130.4113 | C170: 0.01608483546 | E170: 927085.696 | F170: 0.01605124745 | H170: 931955.4837 | I170: 0.01602021332 | K170: 936896.1162 | L170: 0.01599011358
A171: NHS South Devon and Torbay CCG | B171: 304720.6899 | C171: 0.005315280896 | E171: 306117.5794 | F171: 0.005300015993 | H171: 307533.2403 | I171: 0.005286462926 | K171: 309018.789 | L171: 0.005274059149
A172: NHS Ashford CCG | B172: 112725.9381 | C172: 0.00196629256 | E172: 113957.4207 | F172: 0.00197302015 | H172: 115184.3605 | I172: 0.001980006619 | K172: 116401.2395 | L172: 0.001986633318
A173: NHS Canterbury and Coastal CCG | B173: 204910.1328 | C173: 0.003574272934 | E173: 206145.9146 | F173: 0.00356914048 | H173: 207327.8584 | I173: 0.003563943318 | K173: 208561.5504 | L173: 0.003559543924
A174: NHS Dartford, Gravesham and Swanley CCG | B174: 256708.2276 | C174: 0.004477793543 | E174: 259296.9128 | F174: 0.004489378845 | H174: 261896.467 | I174: 0.00450197176 | K174: 264498.679 | L174: 0.00451422932
A175: NHS Medway CCG | B175: 287673.4907 | C175: 0.005017924479 | E175: 290379.4719 | F175: 0.005027531735 | H175: 293065.6162 | I175: 0.005037766042 | K175: 295780.1147 | L175: 0.005048113175
A176: NHS South Kent Coast CCG | B176: 212769.6469 | C176: 0.003711367416 | E176: 213732.8089 | F176: 0.003700497396 | H176: 214745.4235 | I176: 0.003691450456 | K176: 215834.4462 | L176: 0.003683671271
A177: NHS Swale CCG | B177: 113292.1513 | C177: 0.001976169087 | E177: 114638.1756 | F177: 0.00198480651 | H177: 115963.7198 | I177: 0.001993403721 | K177: 117272.5015 | L177: 0.002001503246
A178: NHS Thanet CCG | B178: 164802.6016 | C178: 0.002874672277 | E178: 166236.4961 | F178: 0.002878162339 | H178: 167676.377 | I178: 0.00288233867 | K178: 169159.3807 | L178: 0.002887062572
A179: NHS West Kent CCG | B179: 450823.9309 | C179: 0.007863777901 | E179: 455319.5268 | F179: 0.00788324793 | H179: 459721.9956 | I179: 0.007902571065 | K179: 464237.9266 | L179: 0.00792320199
A180: NHS Brighton and Hove CCG | B180: 278189.9418 | C180: 0.004852501757 | E180: 280327.4627 | F180: 0.004853494656 | H180: 282342.918 | I180: 0.004853444028 | K180: 284379.3235 | L180: 0.004853534563
A181: NHS Eastbourne, Hailsham and Seaford CCG | B181: 213132.8757 | C181: 0.003717703261 | E181: 214685.6757 | F181: 0.00371699501 | H181: 216276.7975 | I181: 0.003717774608 | K181: 217874.0621 | L181: 0.003718481631
A182: NHS Coastal West Sussex CCG | B182: 558725.5627 | C182: 0.009745919485 | E182: 563372.9536 | F182: 0.009754048331 | H182: 567978.4704 | I182: 0.009763488082 | K182: 572655.8021 | L182: 0.009773582317
A183: NHS Crawley CCG | B183: 124640.5185 | C183: 0.002174120067 | E183: 126059.6431 | F183: 0.002182553926 | H183: 127428.1811 | I183: 0.002190476563 | K183: 128796.2543 | L183: 0.002198180459
A184: NHS East Surrey CCG | B184: 175478.765 | C184: 0.003060897924 | E184: 177402.8144 | F184: 0.003071492188 | H184: 179351.5495 | I184: 0.003083033614 | K184: 181312.426 | L184: 0.00309447999
A185: NHS Guildford and Waverley CCG | B185: 199338.5724 | C185: 0.003477087512 | E185: 201193.9281 | F185: 0.003483403466 | H185: 202873.5962 | I185: 0.003487375037 | K185: 204507.4826 | L185: 0.003490352684
A186: NHS Hastings and Rother CCG | B186: 206670.39 | C186: 0.003604977319 | E186: 207968.1794 | F186: 0.003600690555 | H186: 209302.8699 | I186: 0.003597893552 | K186: 210726.7358 | L186: 0.003596497392
A187: NHS Horsham and Mid Sussex CCG | B187: 215487.9946 | C187: 0.003758783893 | E187: 216964.0519 | F187: 0.003756442042 | H187: 218404.4498 | I187: 0.003754348719 | K187: 219906.1604 | L187: 0.003753163686
A188: NHS North West Surrey CCG | B188: 350672.059 | C188: 0.006116816342 | E188: 353604.7866 | F188: 0.006122193401 | H188: 356493.1191 | I188: 0.006128077914 | K188: 359402.4117 | L188: 0.006133962222
A189: NHS Surrey Heath CCG | B189: 92716.9697 | C189: 0.001617273635 | E189: 93211.1974 | F189: 0.001613827073 | H189: 93711.1834 | I189: 0.001610885042 | K189: 94191.52069 | L189: 0.001607577497
A190: NHS Surrey Downs CCG | B190: 289182.7675 | C190: 0.005044250983 | E190: 291780.6594 | F190: 0.005051791422 | H190: 294397.4064 | I190: 0.005060659372 | K190: 297059.3648 | L190: 0.005069946282
A191: NHS High Weald Lewes Havens CCG | B191: 163436.5271 | C191: 0.00285084367 | E191: 164627.8648 | F191: 0.002850311041 | H191: 165776.3007 | I191: 0.002849676564 | K191: 166982.6511 | L191: 0.002849912076
A192: NHS Bracknell and Ascot CCG | B192: 126292.8363 | C192: 0.002202941652 | E192: 127565.2602 | F192: 0.00220862167 | H192: 128788.105 | I192: 0.002213853507 | K192: 130047.9229 | L192: 0.00221954283
A193: NHS Chiltern CCG | B193: 301559.0923 | C193: 0.005260132755 | E193: 303357.4408 | F193: 0.005252227889 | H193: 305205.4119 | I193: 0.005246447809 | K193: 307095.1807 | L193: 0.005241228705
A194: NHS Newbury and District CCG | B194: 106556.3816 | C194: 0.001858676218 | E194: 107223.966 | F194: 0.001856439398 | H194: 107910.9852 | I194: 0.00185497809 | K194: 108571.6739 | L194: 0.001853005223
A195: NHS North and West Reading CCG | B195: 102436.0193 | C195: 0.001786804225 | E195: 103253.1455 | F195: 0.001787689958 | H195: 103998.5884 | I195: 0.001787724415 | K195: 104808.5841 | L195: 0.001788780137
A196: NHS Oxfordshire CCG | B196: 622836.7368 | C196: 0.01086421867 | E196: 626979.1485 | F196: 0.01085530443 | H196: 630847.1037 | I196: 0.01084419305 | K196: 634798.2917 | L196: 0.01083417532
A197: NHS Slough CCG | B197: 138554.9703 | C197: 0.00241683158 | E197: 140377.4708 | F197: 0.002430447941 | H197: 142141.1867 | I197: 0.002443391528 | K197: 143899.8662 | L197: 0.002455955536
A198: NHS South Reading CCG | B198: 113017.2075 | C198: 0.001971373208 | E198: 113575.0535 | F198: 0.001966399973 | H198: 114044.7373 | I198: 0.00196041662 | K198: 114509.28 | L198: 0.001954343028
A199: NHS Aylesbury Vale CCG | B199: 190741.7117 | C199: 0.003327131403 | E199: 192825.1125 | F199: 0.003338508628 | H199: 194875.1202 | I199: 0.003349882105 | K199: 196904.0082 | L199: 0.003360583314
A200: NHS Windsor, Ascot and Maidenhead CCG | B200: 138528.3124 | C200: 0.002416366584 | E200: 139746.2464 | F200: 0.002419519134 | H200: 140897.6563 | I200: 0.002422015375 | K200: 142121.3843 | L200: 0.002425601981
... 11 more rows

Sheet CCG - STP lookup (hidden)
A1: Source:
A2: CCG18CD | B2: CCG18CDH | C2: CCG18NM | D2: STP18CD | E2: STP18NM | F2: FID
A3: E38000001 | B3: 02N | C3: NHS Airedale, Wharfedale and Craven CCG | D3: E54000005 | E3: West Yorkshire | F3: 1
A4: E38000018 | B4: 02W | C4: NHS Bradford City CCG | D4: E54000005 | E4: West Yorkshire | F4: 2
A5: E38000019 | B5: 02R | C5: NHS Bradford Districts CCG | D5: E54000005 | E5: West Yorkshire | F5: 3
A6: E38000025 | B6: 02T | C6: NHS Calderdale CCG | D6: E54000005 | E6: West Yorkshire | F6: 4
A7: E38000064 | B7: 03A | C7: NHS Greater Huddersfield CCG | D7: E54000005 | E7: West Yorkshire | F7: 5
A8: E38000073 | B8: 03E | C8: NHS Harrogate and Rural District CCG | D8: E54000005 | E8: West Yorkshire | F8: 6
A9: E38000121 | B9: 03J | C9: NHS North Kirklees CCG | D9: E54000005 | E9: West Yorkshire | F9: 7
A10: E38000190 | B10: 03R | C10: NHS Wakefield CCG | D10: E54000005 | E10: West Yorkshire | F10: 8
A11: E38000225 | B11: 15F | C11: NHS Leeds CCG | D11: E54000005 | E11: West Yorkshire | F11: 9
A12: E38000052 | B12: 02Y | C12: NHS East Riding of Yorkshire CCG | D12: E54000006 | E12: Humber, Coast and Vale | F12: 10
A13: E38000085 | B13: 03F | C13: NHS Hull CCG | D13: E54000006 | E13: Humber, Coast and Vale | F13: 11
A14: E38000119 | B14: 03H | C14: NHS North East Lincolnshire CCG | D14: E54000006 | E14: Humber, Coast and Vale | F14: 12
A15: E38000122 | B15: 03K | C15: NHS North Lincolnshire CCG | D15: E54000006 | E15: Humber, Coast and Vale | F15: 13
A16: E38000145 | B16: 03M | C16: NHS Scarborough and Ryedale CCG | D16: E54000006 | E16: Humber, Coast and Vale | F16: 14
A17: E38000188 | B17: 03Q | C17: NHS Vale of York CCG | D17: E54000006 | E17: Humber, Coast and Vale | F17: 15
A18: E38000016 | B18: 00T | C18: NHS Bolton CCG | D18: E54000007 | E18: Greater Manchester | F18: 16
A19: E38000024 | B19: 00V | C19: NHS Bury CCG | D19: E54000007 | E19: Greater Manchester | F19: 17
A20: E38000080 | B20: 01D | C20: NHS Heywood, Middleton and Rochdale CCG | D20: E54000007 | E20: Greater Manchester | F20: 18
A21: E38000135 | B21: 00Y | C21: NHS Oldham CCG | D21: E54000007 | E21: Greater Manchester | F21: 19
A22: E38000143 | B22: 01G | C22: NHS Salford CCG | D22: E54000007 | E22: Greater Manchester | F22: 20
A23: E38000174 | B23: 01W | C23: NHS Stockport CCG | D23: E54000007 | E23: Greater Manchester | F23: 21
A24: E38000182 | B24: 01Y | C24: NHS Tameside and Glossop CCG | D24: E54000007 | E24: Greater Manchester | F24: 22
A25: E38000187 | B25: 02A | C25: NHS Trafford CCG | D25: E54000007 | E25: Greater Manchester | F25: 23
A26: E38000205 | B26: 02H | C26: NHS Wigan Borough CCG | D26: E54000007 | E26: Greater Manchester | F26: 24
A27: E38000217 | B27: 14L | C27: NHS Manchester CCG | D27: E54000007 | E27: Greater Manchester | F27: 25
A28: E38000056 | B28: 01C | C28: NHS Eastern Cheshire CCG | D28: E54000008 | E28: Cheshire and Merseyside | F28: 26
A29: E38000068 | B29: 01F | C29: NHS Halton CCG | D29: E54000008 | E29: Cheshire and Merseyside | F29: 27
A30: E38000091 | B30: 01J | C30: NHS Knowsley CCG | D30: E54000008 | E30: Cheshire and Merseyside | F30: 28
A31: E38000101 | B31: 99A | C31: NHS Liverpool CCG | D31: E54000008 | E31: Cheshire and Merseyside | F31: 29
A32: E38000151 | B32: 01R | C32: NHS South Cheshire CCG | D32: E54000008 | E32: Cheshire and Merseyside | F32: 30
A33: E38000161 | B33: 01T | C33: NHS South Sefton CCG | D33: E54000008 | E33: Cheshire and Merseyside | F33: 31
A34: E38000170 | B34: 01V | C34: NHS Southport and Formby CCG | D34: E54000008 | E34: Cheshire and Merseyside | F34: 32
A35: E38000172 | B35: 01X | C35: NHS St Helens CCG | D35: E54000008 | E35: Cheshire and Merseyside | F35: 33
A36: E38000189 | B36: 02D | C36: NHS Vale Royal CCG | D36: E54000008 | E36: Cheshire and Merseyside | F36: 34
A37: E38000194 | B37: 02E | C37: NHS Warrington CCG | D37: E54000008 | E37: Cheshire and Merseyside | F37: 35
A38: E38000196 | B38: 02F | C38: NHS West Cheshire CCG | D38: E54000008 | E38: Cheshire and Merseyside | F38: 36
A39: E38000208 | B39: 12F | C39: NHS Wirral CCG | D39: E54000008 | E39: Cheshire and Merseyside | F39: 37
A40: E38000006 | B40: 02P | C40: NHS Barnsley CCG | D40: E54000009 | E40: South Yorkshire and Bassetlaw | F40: 38
A41: E38000008 | B41: 02Q | C41: NHS Bassetlaw CCG | D41: E54000009 | E41: South Yorkshire and Bassetlaw | F41: 39
A42: E38000044 | B42: 02X | C42: NHS Doncaster CCG | D42: E54000009 | E42: South Yorkshire and Bassetlaw | F42: 40
A43: E38000141 | B43: 03L | C43: NHS Rotherham CCG | D43: E54000009 | E43: South Yorkshire and Bassetlaw | F43: 41
A44: E38000146 | B44: 03N | C44: NHS Sheffield CCG | D44: E54000009 | E44: South Yorkshire and Bassetlaw | F44: 42
A45: E38000028 | B45: 04Y | C45: NHS Cannock Chase CCG | D45: E54000010 | E45: Staffordshire | F45: 43
A46: E38000053 | B46: 05D | C46: NHS East Staffordshire CCG | D46: E54000010 | E46: Staffordshire | F46: 44
A47: E38000126 | B47: 05G | C47: NHS North Staffordshire CCG | D47: E54000010 | E47: Staffordshire | F47: 45
A48: E38000153 | B48: 05Q | C48: NHS South East Staffordshire and Seisdon Peninsula CCG | D48: E54000010 | E48: Staffordshire | F48: 46
A49: E38000173 | B49: 05V | C49: NHS Stafford and Surrounds CCG | D49: E54000010 | E49: Staffordshire | F49: 47
A50: E38000175 | B50: 05W | C50: NHS Stoke on Trent CCG | D50: E54000010 | E50: Staffordshire | F50: 48
A51: E38000147 | B51: 05N | C51: NHS Shropshire CCG | D51: E54000011 | E51: Shropshire and Telford and Wrekin | F51: 49
A52: E38000183 | B52: 05X | C52: NHS Telford and Wrekin CCG | D52: E54000011 | E52: Shropshire and Telford and Wrekin | F52: 50
A53: E38000058 | B53: 03X | C53: NHS Erewash CCG | D53: E54000012 | E53: Derbyshire | F53: 51
A54: E38000071 | B54: 03Y | C54: NHS Hardwick CCG | D54: E54000012 | E54: Derbyshire | F54: 52
A55: E38000115 | B55: 04J | C55: NHS North Derbyshire CCG | D55: E54000012 | E55: Derbyshire | F55: 53
A56: E38000169 | B56: 04R | C56: NHS Southern Derbyshire CCG | D56: E54000012 | E56: Derbyshire | F56: 54
A57: E38000099 | B57: 03T | C57: NHS Lincolnshire East CCG | D57: E54000013 | E57: Lincolnshire | F57: 55
A58: E38000100 | B58: 04D | C58: NHS Lincolnshire West CCG | D58: E54000013 | E58: Lincolnshire | F58: 56
A59: E38000157 | B59: 99D | C59: NHS South Lincolnshire CCG | D59: E54000013 | E59: Lincolnshire | F59: 57
A60: E38000165 | B60: 04Q | C60: NHS South West Lincolnshire CCG | D60: E54000013 | E60: Lincolnshire | F60: 58
A61: E38000103 | B61: 04E | C61: NHS Mansfield and Ashfield CCG | D61: E54000014 | E61: Nottinghamshire | F61: 59
A62: E38000109 | B62: 04H | C62: NHS Newark and Sherwood CCG | D62: E54000014 | E62: Nottinghamshire | F62: 60
A63: E38000132 | B63: 04K | C63: NHS Nottingham City CCG | D63: E54000014 | E63: Nottinghamshire | F63: 61
A64: E38000133 | B64: 04L | C64: NHS Nottingham North and East CCG | D64: E54000014 | E64: Nottinghamshire | F64: 62
A65: E38000134 | B65: 04M | C65: NHS Nottingham West CCG | D65: E54000014 | E65: Nottinghamshire | F65: 63
A66: E38000142 | B66: 04N | C66: NHS Rushcliffe CCG | D66: E54000014 | E66: Nottinghamshire | F66: 64
A67: E38000051 | B67: 03W | C67: NHS East Leicestershire and Rutland CCG | D67: E54000015 | E67: Leicester, Leicestershire and Rutland | F67: 65
A68: E38000140 | B68: 08P | C68: NHS Richmond CCG | D68: E54000031 | E68: South West London | F68: 66
A69: E38000179 | B69: 08T | C69: NHS Sutton CCG | D69: E54000031 | E69: South West London | F69: 67
A70: E38000193 | B70: 08X | C70: NHS Wandsworth CCG | D70: E54000031 | E70: South West London | F70: 68
A71: E38000002 | B71: 09C | C71: NHS Ashford CCG | D71: E54000032 | E71: Kent and Medway | F71: 69
A72: E38000029 | B72: 09E | C72: NHS Canterbury and Coastal CCG | D72: E54000032 | E72: Kent and Medway | F72: 70
A73: E38000043 | B73: 09J | C73: NHS Dartford, Gravesham and Swanley CCG | D73: E54000032 | E73: Kent and Medway | F73: 71
A74: E38000104 | B74: 09W | C74: NHS Medway CCG | D74: E54000032 | E74: Kent and Medway | F74: 72
A75: E38000156 | B75: 10A | C75: NHS South Kent Coast CCG | D75: E54000032 | E75: Kent and Medway | F75: 73
A76: E38000180 | B76: 10D | C76: NHS Swale CCG | D76: E54000032 | E76: Kent and Medway | F76: 74
A77: E38000184 | B77: 10E | C77: NHS Thanet CCG | D77: E54000032 | E77: Kent and Medway | F77: 75
A78: E38000199 | B78: 99J | C78: NHS West Kent CCG | D78: E54000032 | E78: Kent and Medway | F78: 76
A79: E38000021 | B79: 09D | C79: NHS Brighton and Hove CCG | D79: E54000033 | E79: Sussex and East Surrey | F79: 77
A80: E38000039 | B80: 09H | C80: NHS Crawley CCG | D80: E54000033 | E80: Sussex and East Surrey | F80: 78
A81: E38000054 | B81: 09L | C81: NHS East Surrey CCG | D81: E54000033 | E81: Sussex and East Surrey | F81: 79
A82: E38000055 | B82: 09F | C82: NHS Eastbourne, Hailsham and Seaford CCG | D82: E54000033 | E82: Sussex and East Surrey | F82: 80
A83: E38000076 | B83: 09P | C83: NHS Hastings and Rother CCG | D83: E54000033 | E83: Sussex and East Surrey | F83: 81
A84: E38000081 | B84: 99K | C84: NHS High Weald Lewes Havens CCG | D84: E54000033 | E84: Sussex and East Surrey | F84: 82
A85: E38000083 | B85: 09X | C85: NHS Horsham and Mid Sussex CCG | D85: E54000033 | E85: Sussex and East Surrey | F85: 83
A86: E38000213 | B86: 09G | C86: NHS Coastal West Sussex CCG | D86: E54000033 | E86: Sussex and East Surrey | F86: 84
A87: E38000118 | B87: 99M | C87: NHS North East Hampshire and Farnham CCG | D87: E54000034 | E87: Frimley Health | F87: 85
A88: E38000178 | B88: 10C | C88: NHS Surrey Heath CCG | D88: E54000034 | E88: Frimley Health | F88: 86
A89: E38000224 | B89: 15D | C89: NHS East Berkshire CCG | D89: E54000034 | E89: Frimley Health | F89: 87
A90: E38000128 | B90: 09Y | C90: NHS North West Surrey CCG | D90: E54000035 | E90: Surrey Heartlands | F90: 88
A91: E38000177 | B91: 99H | C91: NHS Surrey Downs CCG | D91: E54000035 | E91: Surrey Heartlands | F91: 89
A92: E38000214 | B92: 09N | C92: NHS Guildford and Waverley CCG | D92: E54000035 | E92: Surrey Heartlands | F92: 90
A93: E38000089 | B93: 11N | C93: NHS Kernow CCG | D93: E54000036 | E93: Cornwall and the Isles of Scilly | F93: 91
A94: E38000129 | B94: 99P | C94: NHS Northern, Eastern and Western Devon CCG | D94: E54000037 | E94: Devon | F94: 92
A95: E38000152 | B95: 99Q | C95: NHS South Devon and Torbay CCG | D95: E54000037 | E95: Devon | F95: 93
A96: E38000150 | B96: 11X | C96: NHS Somerset CCG | D96: E54000038 | E96: Somerset | F96: 94
A97: E38000222 | B97: 15C | C97: NHS Bristol, North Somerset and South Gloucestershire CCG | D97: E54000039 | E97: Bristol, North Somerset and South Gloucestershire | F97: 95
A98: E38000009 | B98: 11E | C98: NHS Bath and North East Somerset CCG | D98: E54000040 | E98: Bath, Swindon and Wiltshire | F98: 96
A99: E38000181 | B99: 12D | C99: NHS Swindon CCG | D99: E54000040 | E99: Bath, Swindon and Wiltshire | F99: 97
A100: E38000206 | B100: 99N | C100: NHS Wiltshire CCG | D100: E54000040 | E100: Bath, Swindon and Wiltshire | F100: 98
A101: E38000045 | B101: 11J | C101: NHS Dorset CCG | D101: E54000041 | E101: Dorset | F101: 99
A102: E38000059 | B102: 10K | C102: NHS Fareham and Gosport CCG | D102: E54000042 | E102: Hampshire and the Isle of Wight | F102: 100
A103: E38000087 | B103: 10L | C103: NHS Isle of Wight CCG | D103: E54000042 | E103: Hampshire and the Isle of Wight | F103: 101
A104: E38000120 | B104: 10J | C104: NHS North Hampshire CCG | D104: E54000042 | E104: Hampshire and the Isle of Wight | F104: 102
A105: E38000137 | B105: 10R | C105: NHS Portsmouth CCG | D105: E54000042 | E105: Hampshire and the Isle of Wight | F105: 103
A106: E38000154 | B106: 10V | C106: NHS South Eastern Hampshire CCG | D106: E54000042 | E106: Hampshire and the Isle of Wight | F106: 104
A107: E38000167 | B107: 10X | C107: NHS Southampton CCG | D107: E54000042 | E107: Hampshire and the Isle of Wight | F107: 105
A108: E38000198 | B108: 11A | C108: NHS West Hampshire CCG | D108: E54000042 | E108: Hampshire and the Isle of Wight | F108: 106
A109: E38000062 | B109: 11M | C109: NHS Gloucestershire CCG | D109: E54000043 | E109: Gloucestershire | F109: 107
A110: E38000136 | B110: 10Q | C110: NHS Oxfordshire CCG | D110: E54000044 | E110: Buckinghamshire, Oxfordshire and Berkshire West | F110: 108
A111: E38000221 | B111: 15A | C111: NHS Berkshire West CCG | D111: E54000044 | E111: Buckinghamshire, Oxfordshire and Berkshire West | F111: 109
A112: E38000223 | B112: 14Y | C112: NHS Buckinghamshire CCG | D112: E54000044 | E112: Buckinghamshire, Oxfordshire and Berkshire West | F112: 110
A113: E38000014 | B113: 00Q | C113: NHS Blackburn with Darwen CCG | D113: E54000048 | E113: Lancashire and South Cumbria | F113: 111
A114: E38000015 | B114: 00R | C114: NHS Blackpool CCG | D114: E54000048 | E114: Lancashire and South Cumbria | F114: 112
A115: E38000034 | B115: 00X | C115: NHS Chorley and South Ribble CCG | D115: E54000048 | E115: Lancashire and South Cumbria | F115: 113
A116: E38000050 | B116: 01A | C116: NHS East Lancashire CCG | D116: E54000048 | E116: Lancashire and South Cumbria | F116: 114
A117: E38000200 | B117: 02G | C117: NHS West Lancashire CCG | D117: E54000048 | E117: Lancashire and South Cumbria | F117: 115
A118: E38000226 | B118: 02M | C118: NHS Fylde and Wyre CCG | D118: E54000048 | E118: Lancashire and South Cumbria | F118: 116
A119: E38000227 | B119: 01E | C119: NHS Greater Preston CCG | D119: E54000048 | E119: Lancashire and South Cumbria | F119: 117
A120: E38000228 | B120: 01K | C120: NHS Morecambe Bay CCG | D120: E54000048 | E120: Lancashire and South Cumbria | F120: 118
A121: E38000042 | B121: 00C | C121: NHS Darlington CCG | D121: E54000049 | E121: Cumbria and North East | F121: 119
A122: E38000047 | B122: 00D | C122: NHS Durham Dales, Easington and Sedgefield CCG | D122: E54000049 | E122: Cumbria and North East | F122: 120
A123: E38000069 | B123: 03D | C123: NHS Hambleton, Richmondshire and Whitby CCG | D123: E54000049 | E123: Cumbria and North East | F123: 121
A124: E38000075 | B124: 00K | C124: NHS Hartlepool and Stockton-on-Tees CCG | D124: E54000049 | E124: Cumbria and North East | F124: 122
A125: E38000162 | B125: 00M | C125: NHS South Tees CCG | D125: E54000049 | E125: Cumbria and North East | F125: 123
A126: E38000116 | B126: 00J | C126: NHS North Durham CCG | D126: E54000049 | E126: Cumbria and North East | F126: 124
A127: E38000127 | B127: 99C | C127: NHS North Tyneside CCG | D127: E54000049 | E127: Cumbria and North East | F127: 125
A128: E38000130 | B128: 00L | C128: NHS Northumberland CCG | D128: E54000049 | E128: Cumbria and North East | F128: 126
A129: E38000163 | B129: 00N | C129: NHS South Tyneside CCG | D129: E54000049 | E129: Cumbria and North East | F129: 127
A130: E38000176 | B130: 00P | C130: NHS Sunderland CCG | D130: E54000049 | E130: Cumbria and North East | F130: 128
A131: E38000212 | B131: 13T | C131: NHS Newcastle Gateshead CCG | D131: E54000049 | E131: Cumbria and North East | F131: 129
A132: E38000215 | B132: 01H | C132: NHS North Cumbria CCG | D132: E54000049 | E132: Cumbria and North East | F132: 130
A133: E38000097 | B133: 04C | C133: NHS Leicester City CCG | D133: E54000015 | E133: Leicester, Leicestershire and Rutland | F133: 131
A134: E38000201 | B134: 04V | C134: NHS West Leicestershire CCG | D134: E54000015 | E134: Leicester, Leicestershire and Rutland | F134: 132
A135: E38000046 | B135: 05C | C135: NHS Dudley CCG | D135: E54000016 | E135: The Black Country | F135: 133
A136: E38000144 | B136: 05L | C136: NHS Sandwell and West Birmingham CCG | D136: E54000016 | E136: The Black Country | F136: 134
A137: E38000191 | B137: 05Y | C137: NHS Walsall CCG | D137: E54000016 | E137: The Black Country | F137: 135
A138: E38000210 | B138: 06A | C138: NHS Wolverhampton CCG | D138: E54000016 | E138: The Black Country | F138: 136
A139: E38000220 | B139: 15E | C139: NHS Birmingham and Solihull CCG | D139: E54000017 | E139: Birmingham and Solihull | F139: 137
A140: E38000038 | B140: 05A | C140: NHS Coventry and Rugby CCG | D140: E54000018 | E140: Coventry and Warwickshire | F140: 138
A141: E38000164 | B141: 05R | C141: NHS South Warwickshire CCG | D141: E54000018 | E141: Coventry and Warwickshire | F141: 139
A142: E38000195 | B142: 05H | C142: NHS Warwickshire North CCG | D142: E54000018 | E142: Coventry and Warwickshire | F142: 140
A143: E38000078 | B143: 05F | C143: NHS Herefordshire CCG | D143: E54000019 | E143: Herefordshire and Worcestershire | F143: 141
A144: E38000139 | B144: 05J | C144: NHS Redditch and Bromsgrove CCG | D144: E54000019 | E144: Herefordshire and Worcestershire | F144: 142
A145: E38000166 | B145: 05T | C145: NHS South Worcestershire CCG | D145: E54000019 | E145: Herefordshire and Worcestershire | F145: 143
A146: E38000211 | B146: 06D | C146: NHS Wyre Forest CCG | D146: E54000019 | E146: Herefordshire and Worcestershire | F146: 144
A147: E38000037 | B147: 03V | C147: NHS Corby CCG | D147: E54000020 | E147: Northamptonshire | F147: 145
A148: E38000108 | B148: 04G | C148: NHS Nene CCG | D148: E54000020 | E148: Northamptonshire | F148: 146
A149: E38000026 | B149: 06H | C149: NHS Cambridgeshire and Peterborough CCG | D149: E54000021 | E149: Cambridgeshire and Peterborough | F149: 147
A150: E38000063 | B150: 06M | C150: NHS Great Yarmouth and Waveney CCG | D150: E54000022 | E150: Norfolk and Waveney | F150: 148
A151: E38000124 | B151: 06V | C151: NHS North Norfolk CCG | D151: E54000022 | E151: Norfolk and Waveney | F151: 149
A152: E38000203 | B152: 07J | C152: NHS West Norfolk CCG | D152: E54000022 | E152: Norfolk and Waveney | F152: 150
A153: E38000218 | B153: 06W | C153: NHS Norwich CCG | D153: E54000022 | E153: Norfolk and Waveney | F153: 151
A154: E38000219 | B154: 06Y | C154: NHS South Norfolk CCG | D154: E54000022 | E154: Norfolk and Waveney | F154: 152
A155: E38000086 | B155: 06L | C155: NHS Ipswich and East Suffolk CCG | D155: E54000023 | E155: Suffolk and North East Essex | F155: 153
A156: E38000117 | B156: 06T | C156: NHS North East Essex CCG | D156: E54000023 | E156: Suffolk and North East Essex | F156: 154
A157: E38000204 | B157: 07K | C157: NHS West Suffolk CCG | D157: E54000023 | E157: Suffolk and North East Essex | F157: 155
A158: E38000010 | B158: 06F | C158: NHS Bedfordshire CCG | D158: E54000024 | E158: Milton Keynes, Bedfordshire and Luton | F158: 156
A159: E38000102 | B159: 06P | C159: NHS Luton CCG | D159: E54000024 | E159: Milton Keynes, Bedfordshire and Luton | F159: 157
A160: E38000107 | B160: 04F | C160: NHS Milton Keynes CCG | D160: E54000024 | E160: Milton Keynes, Bedfordshire and Luton | F160: 158
A161: E38000049 | B161: 06K | C161: NHS East and North Hertfordshire CCG | D161: E54000025 | E161: Hertfordshire and West Essex | F161: 159
A162: E38000079 | B162: 06N | C162: NHS Herts Valleys CCG | D162: E54000025 | E162: Hertfordshire and West Essex | F162: 160
A163: E38000197 | B163: 07H | C163: NHS West Essex CCG | D163: E54000025 | E163: Hertfordshire and West Essex | F163: 161
A164: E38000007 | B164: 99E | C164: NHS Basildon and Brentwood CCG | D164: E54000026 | E164: Mid and South Essex | F164: 162
A165: E38000030 | B165: 99F | C165: NHS Castle Point and Rochford CCG | D165: E54000026 | E165: Mid and South Essex | F165: 163
A166: E38000106 | B166: 06Q | C166: NHS Mid Essex CCG | D166: E54000026 | E166: Mid and South Essex | F166: 164
A167: E38000168 | B167: 99G | C167: NHS Southend CCG | D167: E54000026 | E167: Mid and South Essex | F167: 165
A168: E38000185 | B168: 07G | C168: NHS Thurrock CCG | D168: E54000026 | E168: Mid and South Essex | F168: 166
A169: E38000020 | B169: 07P | C169: NHS Brent CCG | D169: E54000027 | E169: North West London | F169: 167
A170: E38000031 | B170: 09A | C170: NHS Central London (Westminster) CCG | D170: E54000027 | E170: North West London | F170: 168
A171: E38000048 | B171: 07W | C171: NHS Ealing CCG | D171: E54000027 | E171: North West London | F171: 169
A172: E38000070 | B172: 08C | C172: NHS Hammersmith and Fulham CCG | D172: E54000027 | E172: North West London | F172: 170
A173: E38000074 | B173: 08E | C173: NHS Harrow CCG | D173: E54000027 | E173: North West London | F173: 171
A174: E38000082 | B174: 08G | C174: NHS Hillingdon CCG | D174: E54000027 | E174: North West London | F174: 172
A175: E38000084 | B175: 07Y | C175: NHS Hounslow CCG | D175: E54000027 | E175: North West London | F175: 173
A176: E38000202 | B176: 08Y | C176: NHS West London CCG | D176: E54000027 | E176: North West London | F176: 174
A177: E38000005 | B177: 07M | C177: NHS Barnet CCG | D177: E54000028 | E177: North Central London | F177: 175
A178: E38000027 | B178: 07R | C178: NHS Camden CCG | D178: E54000028 | E178: North Central London | F178: 176
A179: E38000057 | B179: 07X | C179: NHS Enfield CCG | D179: E54000028 | E179: North Central London | F179: 177
A180: E38000072 | B180: 08D | C180: NHS Haringey CCG | D180: E54000028 | E180: North Central London | F180: 178
A181: E38000088 | B181: 08H | C181: NHS Islington CCG | D181: E54000028 | E181: North Central London | F181: 179
A182: E38000004 | B182: 07L | C182: NHS Barking and Dagenham CCG | D182: E54000029 | E182: North East London | F182: 180
A183: E38000035 | B183: 07T | C183: NHS City and Hackney CCG | D183: E54000029 | E183: North East London | F183: 181
A184: E38000077 | B184: 08F | C184: NHS Havering CCG | D184: E54000029 | E184: North East London | F184: 182
A185: E38000113 | B185: 08M | C185: NHS Newham CCG | D185: E54000029 | E185: North East London | F185: 183
A186: E38000138 | B186: 08N | C186: NHS Redbridge CCG | D186: E54000029 | E186: North East London | F186: 184
A187: E38000186 | B187: 08V | C187: NHS Tower Hamlets CCG | D187: E54000029 | E187: North East London | F187: 185
A188: E38000192 | B188: 08W | C188: NHS Waltham Forest CCG | D188: E54000029 | E188: North East London | F188: 186
A189: E38000011 | B189: 07N | C189: NHS Bexley CCG | D189: E54000030 | E189: South East London | F189: 187
A190: E38000023 | B190: 07Q | C190: NHS Bromley CCG | D190: E54000030 | E190: South East London | F190: 188
A191: E38000066 | B191: 08A | C191: NHS Greenwich CCG | D191: E54000030 | E191: South East London | F191: 189
A192: E38000092 | B192: 08K | C192: NHS Lambeth CCG | D192: E54000030 | E192: South East London | F192: 190
A193: E38000098 | B193: 08L | C193: NHS Lewisham CCG | D193: E54000030 | E193: South East London | F193: 191
A194: E38000171 | B194: 08Q | C194: NHS Southwark CCG | D194: E54000030 | E194: South East London | F194: 192
A195: E38000040 | B195: 07V | C195: NHS Croydon CCG | D195: E54000031 | E195: South West London | F195: 193
A196: E38000090 | B196: 08J | C196: NHS Kingston CCG | D196: E54000031 | E196: South West London | F196: 194
A197: E38000105 | B197: 08R | C197: NHS Merton CCG | D197: E54000031 | E197: South West London | F197: 195
